Workbook

Sheet Info
A1: 1. | B1: Arkusz przeznaczony jest dla : | G1: Okręgu PZHGP | H1: TORUŃ
B2: BARDZO WAŻNE ! - Skoroszyt dostarczony w tej formie i nazwie powinien zostać po wypełnieniu oddany w tej samej formie i nazwie.
B3: PROSZĘ - nie kopiować skoroszytu, nie zmieniać jego nazwy (jest to istotne do dalszego działania makr).
B4: Pomimo zabezpieczenia w niektórych elementach skoroszytu możliwe są częściowe zmiany, np. formatu lub czcionki,
B5: jednakże BARDZO PROSZĘ tego nie robić !!!
A6: 2. | B6: Automatyczne wczytywanie danych utworzonych programem oddziałowym Andrzeja Wojtasioka w wersji min. 07-2020
B7: 2.1. | C7: Przed uruchomieniem przycisku "CZYTAJ DANE ..." należy upewnić się, czy w tym samym folderze co ten skoroszyt Excela
C8: zapisane są pliki tekstowe : ST-1-1.txt do ST-1-5.txt, ST-0-1.txt do ST-0-5.txt, STM-1-1.txt i STM-1-2.txt, STM-0-1.txt i STM-0-2.txt
C9: (makro umożliwia nawet częściowe czytanie danych z plików tekstowych - dlatego nie musi być kompletu ww. plików - część
C10: może być sczytana automatycznie, a część dopisana ręcznie, np. barwa, wg kolejnego punktu 3.).
B11: 2.2. | C11: Uruchomić (kliknąć) przycisk "CZYTAJ DANE …" (obok z prawej strony), UWAGA ! - przycisk ten przed wczytaniem danych czyści wszystkie wpisy.
C12: Po wczytaniu danych aktywną komórką staje się A17:A18 (do wpisania, poprawy Nazwiska Hodowcy).
B13: 2.3. | C13: Sprawdzić wczytane dane w poszczególnych arkuszach (zwrócić uwagę na kolory wypełnień opisane poniżej).
C14: Sprawdzić także należy prawidłowość wypełnienia opisanego z pkt 3. (np. sposób wpisywania Imienia i nazwiska hodowcy).
C15: UWAGA ! - Jeżeli barwy w plikach tekstowych różnią się od zapisanych w tabeli "G73:G95" to rubryka barwa pozostaje pusta i należy ją uzupełnić.
B16: 2.4. | C16: Proszę pamiętać, że uruchomienie przycisku powoduje najpierw WYCZYSZCZENIE arkuszy do których są wczytywane pliki tekstowe,
C17: a dopiero potem wczytanie danych z istniejących plików tekstowych (brak pliku sygnalizowany jest komunikatem).
A18: 3. | B18: W przypadku braku plików tekstowych (pkt.2.1.) wypełnić należy WSZYSTKIE komórki w kolorze tła jak ten.
B19: UWAGA ! - Przed wypełnianiem dobrze byłoby uruchomić CZYSZCZENIE (przycisk obok z prawej strony) jednak należy zwrócić uwagę
B20: na to, że jeśli uprzednio korzystało się z Automatycznego wczytania (pkt 2) to CZYSZCZENIE usunie te wpisy - więc dobrze byłoby
B21: uruchomić CZYSZCZENIE na samym początku, przed przystąpieniem czy to do Automatycznego wczytania, czy do ręcznego wypełniania.
B22: Po wyczyszczeniu komórek aktywną komórką staje się A17:A18 (do wpisania Nazwiska Hodowcy).
B23: W trakcie wpisywania komórki mogą zmieniać kolor (opis w dalszej części) - przykład wypełnienia w arkuszu "Ex"
B24: Komórki w kolorze tła innym niż ten, są zabezpieczone i nie mogą być wypełniane żadną informacją.
C25: komórki | D25: - wypełnienie :
B26: 3.1. | C26: A17 : A18 | D26: - Imię i Nazwisko Hodowcy wpisać w scalonych komórkach A17:A18
E27: Najpierw należy wpisać Imię z dużej litery (pozostałe małe), a następnie nazwisko całe dużymi literami.
E28: W przypadku tandemów wpisać obydwa nazwiska dużymi literami przedzielone kreską.
E29: Przypisy : "bracia", "syn", "synowie", "ojciec" itd. należy pisać na końcu małymi literami.
B30: 3.2. | C30: A21 : A22 | D30: - Oddział PZHGP wpisac dużymi literami - max. 15 znaków
B31: 3.3. | C31: E1 : G1 | D31: - Obrączkę Rodową gołębia należy wpisać w formacie :
E32: Państwo - Oddział - rocznik - nr kolejny, np. PL-0123-01-1234
B33: 3.4. | C33: E2 : G2 | D33: - Barwę - należy wybrać z tabeli wyboru.
B34: 3.5. | C34: H1 | D34: - Płeć - jest wpisana 1-samczy lub 0-samiczka w zależności dla jakiej płci jest przeznaczony arkusz (dlatego kolor niebieski)
B35: 3.6. | C35: C6 : Cx | D35: - Datę lotu - wpisać należy w formacie rr-mm-dd :
E36: r | F36: - rok : jedna lub 2 cyfry (od 0 do 10), np. 10 oznacza rok 2010, a 9 - 2009, następnie kreska
E37: m | F37: - miesiąc : jedna lub 2 cyfry (od 1 do 12), np. 5 oznacza maj, następnie kreska
E38: d | F38: - dzień : jedna lub 2 cyfry (od 1 do 31), np. 25
E39: Arkusz sprawdza czy wpisana data mieści się w przedziale dopuszczalnych dat i jest prawidłowo (zgodnie z formatem) wpisana :
E40: PRAWIDŁOWY WPIS
E41: WPIS NIE MIEŚCI SIĘ W PRZEDZIALE (lub zły format daty)
B42: 3.7. | C42: D6 : Dx | D42: - Poszczególne miejscowości wypuszczenia - wpisać dużymi literami - max. 15 znaków
B43: 3.8. | C43: E6 : Ex | D43: - Odległość z lotu "km" należy podać w postaci liczby całkowitej lub rzeczywistej
E44: zaokrąglonej do 2 miejsc po przecinku.
E45: Arkusz sprawdza czy wpisana odległość mieści się w przedziale danej klasy i po wpisaniu :
E46: zamienia kolor komórki na :
E47: PRAWIDŁOWY WPIS
E48: WPIS NIE MIEŚCI SIĘ W PRZEDZIALE
B49: 3.9. | C49: F6 : Fx | D49: - Ilość włożonych na lot gołębi - arkusz sprawdza prawidłowość wpisu i oznacza kolorem j.w.
E50: Wpis sprawdzany jest na minimum włożonych gołębi w danej klasie
B51: 3.10. | C51: G6 : Gx | D51: - Nr konkursu - arkusz sprawdza prawidłowość wpisu i oznacza kolorem j.w.
E52: Sprawdza się czy liczba zawarta jest pomiędzy 1, a ilością konkursów na bazie 20%
B53: 3.11. | C53: H6 : Hx | D53: - Ilość hodowców biorących udział w locie - arkusz sprawdza prawidłowość wpisu i oznacza kolorem j.w.
E54: Wpis sprawdzany jest na minimum hodowców biorących udział w locie w danej klasie
A55: 4. | B55: Komórki w kolorze tła jak ten, same obliczają wynik lub są zapisane gotową informacją.
B56: a w przypadku podsumowania Konk.-km zmieniają kolor tła na :
C57: WYNIK PRAWIDŁOWY
C58: WYNIK NIEKOMPLETNY LUB ZŁY
A59: 5. | B59: Skoroszyt składa się z: arkusza "Info", "Ex" (przykład), po 5 arkuszy z każdej Klasy Standard : 1-samczyki i 0-samiczki oraz po 2 arkusze Klasy Standard Młode :
B60: 1-samczyki i 0-samiczki. Na końcu znajduje się arkusz "Rep" - zbiorcze zestawienia Okręgu, który zostaje wypełniony automatycznie.
B61: W przypadku niepełnej reprezentacji Okręgu należy zacząć od wypełniania arkuszy z numerem 1, dalej 2 i na końcu 5 jeśli jest komplet w danej klasie.
C63: Życzę bezproblemowej pracy | I63: UWAGA !!! - w razie problemów ze skoroszytem lub wątpliwościami co do wypełnienia
C64: Dobry Lot ! | I64: bardzo proszę kontaktować się drogą mailową : katgol@pro.onet.pl,
C65: Andrzej Wojtasiok | I65: a nie telefonicznie !
B67: nr dnia | C67: data | D67: legenda | G67: - daty od/do kiedy mogą być wpisywane daty lotów (wystarczy poprawić "datę", a nr dnia zmieni się sam) UWAGA ! - ZE WZGLĘDU na ochronę kontroli prawidłowych wpisów zmiany te nie są na tym etapie dostępne ! | M67: wpisać rok :
B68: =C68 -> 43936 | C68: 2020-04-15 | D68: od ub. rok | M68: Kkm za 2020 rok
B69: =C69 -> 44104 | C69: 2020-09-30 | D69: do ub. rok
B70: =C70 -> 44301 | C70: 2021-04-15 | D70: od b. rok | M70: Kkm za 2021 rok
B71: =C71 -> 44469 | C71: 2021-09-30 | D71: do b. rok
A72: BARWY GOŁĘBI wg zalecenia ZG PZHGP : | C72: Barwa w arkuszu xls | G72: Barwa w DOS
B73: 1 | C73: niebieska | G73: niebies.
B74: 2 | C74: niebiesko-nakr. | G74: n-nakrap
B75: 3 | C75: ciemno-nakrap. | G75: c-nakrap
B76: 4 | C76: ciemna | G76: ciemna
B77: 5 | C77: czarna | G77: czarna
B78: 6 | C78: czerwono-nakr. | G78: czer-nak
B79: 7 | C79: czerwona | G79: czerwona
B80: 8 | C80: płowa | G80: płowa
B81: 9 | C81: biała | G81: biała
B82: 10 | C82: szpakowata | G82: szpak
B83: 11 | C83: niebiesko-pstra | G83: n-pstra
B84: 12 | C84: nieb-nakr-pstra | G84: n-n-pst.
B85: 13 | C85: ciem-nakr-pstra | G85: c-n-pst.
B86: 14 | C86: ciemno-pstra | G86: c-pstra
B87: 15 | C87: czarno-pstra | G87: czar-pst
B88: 16 | C88: czer-nakr-pstra | G88: czer-n-p
B89: 17 | C89: czerwono-pstra | G89: czer-pst
B90: 18 | C90: płowo-pstra | G90: pł-pstra
B91: 19 | C91: szpak-pstra | G91: szp-pst.
B92: 20 | C92: czerwono-szpak | G92: czer-szp
B93: 21 | C93: czer-szp-pstra | G93: czer-s-p
B94: 22 | C94: płowo-szpak | G94: pł-szp.
B95: 23 | C95: pł-szpak-pstra | G95: pł-szp-p

Sheet Ex
A1: 70. OGÓLNOPOLSKA WYSTAWA GOŁĘBI POCZTOWYCH | D1: Obrączka Rodowa | E1: PL-0123-01-12345 | H1: 1 | I1: 1 | J1: =Info!C73 -> niebieska
D2: Barwa | E2: niebieska | H2: Płeć | I2: 2 | J2: =Info!C74 -> niebiesko-nakr. | M2: =Info!B68 -> 43936 | N2: od ubr
B3: Nr Klatki | D3: Zestawienie lotów | I3: 3 | J3: =Info!C75 -> ciemno-nakrap. | M3: =Info!B69 -> 44104 | N3: do ubr
B4: Lp. | C4: Data lotu | D4: Miejscowość wypuszczenia | E4: km | F4: Włoż. Goł. Na lot | G4: Nr konkursu | H4: Ilość Hodowców | I4: 4 | J4: =Info!C76 -> ciemna | M4: =Info!B70 -> 44301 | N4: od br
B5: XX | C5: wpisz : r-m-d | D5: max. 15 znaków | E5: pow. 100 | F5: min. 250 | G5: max. Kol. F/5 | H5: min. 20 | I5: 5 | J5: =Info!C77 -> czarna | M5: =Info!B71 -> 44469 | N5: do br
B6: 1. | C6: =Info!C68+28 -> 2020-05-13 | D6: OŁAWA (s) | E6: 137.44 | F6: 5333 | G6: 2 | H6: 132 | I6: 6 | J6: =Info!C78 -> czerwono-nakr. | L6: =IF(AND(C6>=$M$2,C6<=$M$3,E6>=100,E6<=1500,F6>=150,H6>=20),E6,0) -> 137.44 | M6: =IF(AND(C6>=$M$4,C6<=$M$5,E6>=100,E6<=1500,F6>=150,H6>=20),E6,0) -> 0
B7: 2. | C7: =Info!C68+35 -> 2020-05-20 | D7: POZNAŃ | E7: 290.95 | F7: 5034 | G7: 930 | H7: 135 | I7: 7 | J7: =Info!C79 -> czerwona | L7: =IF(AND(C7>=$M$2,C7<=$M$3,E7>=100,E7<=1500,F7>=150,H7>=20),E7,0) -> 290.95 | M7: =IF(AND(C7>=$M$4,C7<=$M$5,E7>=100,E7<=1500,F7>=150,H7>=20),E7,0) -> 0
B8: 3. | C8: =Info!C68+56 -> 2020-06-10 | D8: SŁUBICE 1 | E8: 383.24 | F8: 4537 | G8: 55 | H8: 131 | I8: 8 | J8: =Info!C80 -> płowa | L8: 383.24 | M8: 0
B9: 4. | C9: =Info!C68+63 -> 2020-06-17 | D9: PERLEBERG | E9: 576.81 | F9: 2683 | G9: 154 | H9: 125 | I9: 9 | J9: =Info!C81 -> biała | L9: 576.81 | M9: 0
B10: 5. | C10: =Info!C68+70 -> 2020-06-24 | D10: PERLEBERG 2 | E10: 576.81 | F10: 1785 | G10: 37 | H10: 109 | I10: 10 | J10: =Info!C82 -> szpakowata | L10: 576.81 | M10: 0
B11: 6. | C11: =Info!C68+84 -> 2020-07-08 | D11: PAPENBURG 1 (o) | E11: 853.9 | F11: 3356 | G11: 35 | H11: 423 | I11: 11 | J11: =Info!C83 -> niebiesko-pstra | L11: 853.9 | M11: 0
A12: MIĘDZYNARODOWE CENTRUM | B12: 7. | C12: =Info!C68+98 -> 2020-07-22 | D12: PAPENBURG 2 (o) | E12: 853.9 | F12: 3169 | G12: 623 | H12: 389 | I12: 12 | J12: =Info!C84 -> nieb-nakr-pstra | L12: 853.9 | M12: 0
A13: KONGRESOWE w Katowicach | B13: 8. | C13: =Info!C70+35 -> 2021-05-20 | D13: ŚRODA ŚL. | E13: 190.11 | F13: 5185 | G13: 300 | H13: 126 | I13: 13 | J13: =Info!C85 -> ciem-nakr-pstra | L13: 0 | M13: 190.11
A14: 07-09 stycznia 2022 roku | B14: 9. | C14: =Info!C70+70 -> 2021-06-24 | D14: POZNAŃ | E14: 290.88 | F14: 5121 | G14: 24 | H14: 129 | I14: 14 | J14: =Info!C86 -> ciemno-pstra | L14: 0 | M14: 290.88
A15: Imię i NAZWISKO Hodowcy | B15: 10. | C15: =Info!C70+77 -> 2021-07-01 | D15: GORZÓW WLKP. | E15: 381.88 | F15: 4342 | G15: 83 | H15: 125 | I15: 15 | J15: =Info!C87 -> czarno-pstra | L15: 0 | M15: 381.88
B16: 11. | C16: =Info!C70+91 -> 2021-07-15 | D16: PYRZYCE | E16: 431.27 | F16: 4095 | G16: 758 | H16: 124 | I16: 16 | J16: =Info!C88 -> czer-nakr-pstra | L16: 0 | M16: 431.27
A17: Andrzej WOJTASIOK | B17: 12. | C17: =Info!C70+105 -> 2021-07-29 | D17: SKWIERZYNA | E17: 358.96 | F17: 2888 | G17: 283 | H17: 117 | I17: 17 | J17: =Info!C89 -> czerwono-pstra | L17: 0 | M17: 358.96
B18: 13. | I18: 18 | J18: =Info!C90 -> płowo-pstra | L18: 0 | M18: 0
A19: Oddział PZHGP | B19: 14. | I19: 19 | J19: =Info!C91 -> szpak-pstra | L19: 0 | M19: 0
B20: 15. | I20: 20 | J20: =Info!C92 -> czerwono-szpak | L20: 0 | M20: 0
A21: ŻORY | B21: 16. | I21: 21 | J21: =Info!C93 -> czer-szp-pstra | L21: 0 | M21: 0
B22: 17. | I22: 22 | J22: =Info!C94 -> płowo-szpak | L22: 0 | M22: 0
A23: Okręg PZHGP | B23: 18. | I23: 23 | J23: =Info!C95 -> pł-szpak-pstra | L23: 0 | M23: 0
A24: KATOWICE | B24: 19. | L24: 0 | M24: 0
B25: 20. | L25: 0 | M25: 0
A26: Kategoria wystawowa | B26: =Info!M68 -> Kkm za 2020 rok | E26: =SUM(L6:L25) -> 3673.05 | F26: Razem kkm :
A27: STANDARD - Samczyki (1/0) | B27: =Info!M70 -> Kkm za 2021 rok | E27: =IF(OR(SUM(M6:M25)>=750,SUM(M6:M25)=0),SUM(M6:M25),"MAŁO") -> 1653.1 | F27: =IF(AND(E27<>"MAŁO",OR(SUM(L6:M25)>=2500,SUM(L6:M25)=0)),SUM(L6:M25),"MAŁO") -> 5326.15 | H27: kkm

Sheet ST-1-1
A1: =Ex!A1 -> 70. OGÓLNOPOLSKA WYSTAWA GOŁĘBI POCZTOWYCH | B1: =Rep!A5 -> 0 | D1: Obrączka Rodowa | E1: PL-0326-20-9441 | H1: 1 | I1: 1 | J1: =Info!C73 -> niebieska
D2: Barwa | E2: niebiesko-nakr. | H2: Płeć | I2: 2 | J2: =Info!C74 -> niebiesko-nakr. | M2: =Info!B68 -> 43936 | N2: od ubr
B3: Nr Klatki | D3: Zestawienie lotów | I3: 3 | J3: =Info!C75 -> ciemno-nakrap. | M3: =Info!B69 -> 44104 | N3: do ubr
B4: Lp. | C4: Data lotu | D4: Miejscowość wypuszczenia | E4: km | F4: Włoż. Goł. Na lot | G4: Nr konkursu | H4: Ilość Hodowców | I4: 4 | J4: =Info!C76 -> ciemna | M4: =Info!B70 -> 44301 | N4: od br
B5: XX | C5: wpisz : r-m-d | D5: max. 15 znaków | E5: min. 100 -5% | F5: min. 150 | G5: max. Kol. F/5 | H5: min. 20 | I5: 5 | J5: =Info!C77 -> czarna | M5: =Info!B71 -> 44469 | N5: do br
B6: 1. | C6: 2021-05-24 | D6: WAŁCZ | E6: 159.75 | F6: 7473 | G6: 905 | H6: 133 | I6: 6 | J6: =Info!C78 -> czerwono-nakr. | L6: =IF(AND(C6>=$M$2,C6<=$M$3,E6>=95,E6<=2000,F6>=150,H6>=20),E6,0) -> 0 | M6: =IF(AND(C6>=$M$4,C6<=$M$5,E6>=95,E6<=2000,F6>=150,H6>=20),E6,0) -> 159.75
B7: 2. | C7: 2021-05-30 | D7: KALISZ POMORSKI | E7: 196.49 | F7: 7499 | G7: 617 | H7: 144 | I7: 7 | J7: =Info!C79 -> czerwona | L7: =IF(AND(C7>=$M$2,C7<=$M$3,E7>=95,E7<=2000,F7>=150,H7>=20),E7,0) -> 0 | M7: =IF(AND(C7>=$M$4,C7<=$M$5,E7>=95,E7<=2000,F7>=150,H7>=20),E7,0) -> 196.49
B8: 3. | C8: 2021-06-06 | D8: PASEWALK 1 | E8: 325.29 | F8: 6970 | G8: 438 | H8: 141 | I8: 8 | J8: =Info!C80 -> płowa | L8: 0 | M8: 325.29
B9: 4. | C9: 2021-06-27 | D9: UELZEN 1 | E9: 553.58 | F9: 4277 | G9: 683 | H9: 125 | I9: 9 | J9: =Info!C81 -> biała | L9: 0 | M9: 553.58
B10: 5. | C10: 2021-07-04 | D10: UELZEN 2 | E10: 553.58 | F10: 3434 | G10: 369 | H10: 111 | I10: 10 | J10: =Info!C82 -> szpakowata | L10: 0 | M10: 553.58
B11: 6. | C11: 2021-07-10 | D11: SOGEL 1 | E11: 759.84 | F11: 1993 | G11: 10 | H11: 93 | I11: 11 | J11: =Info!C83 -> niebiesko-pstra | L11: 0 | M11: 759.84
A12: =Ex!A12 -> MIĘDZYNARODOWE CENTRUM | B12: 7. | I12: 12 | J12: =Info!C84 -> nieb-nakr-pstra | L12: 0 | M12: 0
A13: =Ex!A13 -> KONGRESOWE w Katowicach | B13: 8. | I13: 13 | J13: =Info!C85 -> ciem-nakr-pstra | L13: 0 | M13: 0
A14: =Ex!A14 -> 07-09 stycznia 2022 roku | B14: 9. | I14: 14 | J14: =Info!C86 -> ciemno-pstra | L14: 0 | M14: 0
A15: Imię i NAZWISKO Hodowcy | B15: 10. | I15: 15 | J15: =Info!C87 -> czarno-pstra | L15: 0 | M15: 0
B16: 11. | I16: 16 | J16: =Info!C88 -> czer-nakr-pstra | L16: 0 | M16: 0
A17: Maciej KACZMAREK | B17: 12. | I17: 17 | J17: =Info!C89 -> czerwono-pstra | L17: 0 | M17: 0
B18: 13. | I18: 18 | J18: =Info!C90 -> płowo-pstra | L18: 0 | M18: 0
A19: Oddział PZHGP | B19: 14. | I19: 19 | J19: =Info!C91 -> szpak-pstra | L19: 0 | M19: 0
B20: 15. | I20: 20 | J20: =Info!C92 -> czerwono-szpak | L20: 0 | M20: 0
A21: TORUŃ | B21: 16. | I21: 21 | J21: =Info!C93 -> czer-szp-pstra | L21: 0 | M21: 0
B22: 17. | I22: 22 | J22: =Info!C94 -> płowo-szpak | L22: 0 | M22: 0
A23: Okręg PZHGP | B23: 18. | I23: 23 | J23: =Info!C95 -> pł-szpak-pstra | L23: 0 | M23: 0
A24: =Info!H1 -> TORUŃ | B24: 19. | L24: 0 | M24: 0
B25: 20. | L25: 0 | M25: 0
A26: Kategoria wystawowa | B26: =Ex!B26 -> Kkm za 2020 rok | E26: =SUM(L6:L25) -> 0 | F26: Razem kkm :
A27: STANDARD - Samczyki (1/0) | B27: =Ex!B27 -> Kkm za 2021 rok | E27: =IF(OR(SUM(M6:M25)>750,SUM(M6:M25)=0),SUM(M6:M25),"MAŁO") -> 2548.53 | F27: =IF(AND(E27<>"MAŁO",OR(SUM(L6:M25)>=2500,SUM(L6:M25)=0)),SUM(L6:M25),"MAŁO") -> 2548.53 | H27: kkm

Sheet ST-1-2
A1: =Ex!A1 -> 70. OGÓLNOPOLSKA WYSTAWA GOŁĘBI POCZTOWYCH | B1: =Rep!A6 -> 0 | D1: Obrączka Rodowa | E1: PL-DE-19-1002588 | H1: 1 | I1: 1 | J1: =Info!C73 -> niebieska
D2: Barwa | E2: niebieska | H2: Płeć | I2: 2 | J2: =Info!C74 -> niebiesko-nakr. | M2: =Info!B68 -> 43936 | N2: od ubr
B3: Nr Klatki | D3: Zestawienie lotów | I3: 3 | J3: =Info!C75 -> ciemno-nakrap. | M3: =Info!B69 -> 44104 | N3: do ubr
B4: Lp. | C4: Data lotu | D4: Miejscowość wypuszczenia | E4: km | F4: Włoż. Goł. Na lot | G4: Nr konkursu | H4: Ilość Hodowców | I4: 4 | J4: =Info!C76 -> ciemna | M4: =Info!B70 -> 44301 | N4: od br
B5: XX | C5: wpisz : r-m-d | D5: max. 15 znaków | E5: min. 100 -5% | F5: min. 150 | G5: max. Kol. F/5 | H5: min. 20 | I5: 5 | J5: =Info!C77 -> czarna | M5: =Info!B71 -> 44469 | N5: do br
B6: 1. | C6: 2020-06-06 | D6: WISMAR | E6: 502.13 | F6: 1936 | G6: 146 | H6: 53 | I6: 6 | J6: =Info!C78 -> czerwono-nakr. | L6: =IF(AND(C6>=$M$2,C6<=$M$3,E6>=95,E6<=2000,F6>=150,H6>=20),E6,0) -> 502.13 | M6: =IF(AND(C6>=$M$4,C6<=$M$5,E6>=95,E6<=2000,F6>=150,H6>=20),E6,0) -> 0
B7: 2. | C7: 2021-05-09 | D7: ZŁOCIENIEC | E7: 196.4 | F7: 3624 | G7: 459 | H7: 67 | I7: 7 | J7: =Info!C79 -> czerwona | L7: =IF(AND(C7>=$M$2,C7<=$M$3,E7>=95,E7<=2000,F7>=150,H7>=20),E7,0) -> 0 | M7: =IF(AND(C7>=$M$4,C7<=$M$5,E7>=95,E7<=2000,F7>=150,H7>=20),E7,0) -> 196.4
B8: 3. | C8: 2021-05-15 | D8: PASEWALK 1 | E8: 330.29 | F8: 3320 | G8: 262 | H8: 66 | I8: 8 | J8: =Info!C80 -> płowa | L8: 0 | M8: 330.29
B9: 4. | C9: 2021-05-30 | D9: PASEWALK 2 | E9: 330.29 | F9: 2950 | G9: 313 | H9: 65 | I9: 9 | J9: =Info!C81 -> biała | L9: 0 | M9: 330.29
B10: 5. | C10: 2021-06-05 | D10: LUNEBURG | E10: 566.63 | F10: 2262 | G10: 49 | H10: 59 | I10: 10 | J10: =Info!C82 -> szpakowata | L10: 0 | M10: 566.63
B11: 6. | C11: 2021-06-19 | D11: PASEWALK 5 | E11: 330.29 | F11: 2343 | G11: 278 | H11: 60 | I11: 11 | J11: =Info!C83 -> niebiesko-pstra | L11: 0 | M11: 330.29
A12: =Ex!A12 -> MIĘDZYNARODOWE CENTRUM | B12: 7. | C12: 2021-07-24 | D12: SOGEL 2 | E12: 770.1 | F12: 965 | G12: 48 | H12: 44 | I12: 12 | J12: =Info!C84 -> nieb-nakr-pstra | L12: 0 | M12: 770.1
A13: =Ex!A13 -> KONGRESOWE w Katowicach | B13: 8. | I13: 13 | J13: =Info!C85 -> ciem-nakr-pstra | L13: 0 | M13: 0
A14: =Ex!A14 -> 07-09 stycznia 2022 roku | B14: 9. | I14: 14 | J14: =Info!C86 -> ciemno-pstra | L14: 0 | M14: 0
A15: Imię i NAZWISKO Hodowcy | B15: 10. | I15: 15 | J15: =Info!C87 -> czarno-pstra | L15: 0 | M15: 0
B16: 11. | I16: 16 | J16: =Info!C88 -> czer-nakr-pstra | L16: 0 | M16: 0
A17: Marcin ŻEBROWSKI | B17: 12. | I17: 17 | J17: =Info!C89 -> czerwono-pstra | L17: 0 | M17: 0
B18: 13. | I18: 18 | J18: =Info!C90 -> płowo-pstra | L18: 0 | M18: 0
A19: Oddział PZHGP | B19: 14. | I19: 19 | J19: =Info!C91 -> szpak-pstra | L19: 0 | M19: 0
B20: 15. | I20: 20 | J20: =Info!C92 -> czerwono-szpak | L20: 0 | M20: 0
A21: GRUDZIĄDZ | B21: 16. | I21: 21 | J21: =Info!C93 -> czer-szp-pstra | L21: 0 | M21: 0
B22: 17. | I22: 22 | J22: =Info!C94 -> płowo-szpak | L22: 0 | M22: 0
A23: Okręg PZHGP | B23: 18. | I23: 23 | J23: =Info!C95 -> pł-szpak-pstra | L23: 0 | M23: 0
A24: =Info!H1 -> TORUŃ | B24: 19. | L24: 0 | M24: 0
B25: 20. | L25: 0 | M25: 0
A26: Kategoria wystawowa | B26: =Ex!B26 -> Kkm za 2020 rok | E26: =SUM(L6:L25) -> 502.13 | F26: Razem kkm :
A27: STANDARD - Samczyki (1/0) | B27: =Ex!B27 -> Kkm za 2021 rok | E27: =IF(OR(SUM(M6:M25)>750,SUM(M6:M25)=0),SUM(M6:M25),"MAŁO") -> 2524 | F27: =IF(AND(E27<>"MAŁO",OR(SUM(L6:M25)>=2500,SUM(L6:M25)=0)),SUM(L6:M25),"MAŁO") -> 3026.13 | H27: kkm

Sheet ST-1-3
A1: =Ex!A1 -> 70. OGÓLNOPOLSKA WYSTAWA GOŁĘBI POCZTOWYCH | B1: =Rep!A7 -> 0 | D1: Obrączka Rodowa | E1: PL-0323-18-10022 | H1: 1 | I1: 1 | J1: =Info!C73 -> niebieska
D2: Barwa | E2: niebieska | H2: Płeć | I2: 2 | J2: =Info!C74 -> niebiesko-nakr. | M2: =Info!B68 -> 43936 | N2: od ubr
B3: Nr Klatki | D3: Zestawienie lotów | I3: 3 | J3: =Info!C75 -> ciemno-nakrap. | M3: =Info!B69 -> 44104 | N3: do ubr
B4: Lp. | C4: Data lotu | D4: Miejscowość wypuszczenia | E4: km | F4: Włoż. Goł. Na lot | G4: Nr konkursu | H4: Ilość Hodowców | I4: 4 | J4: =Info!C76 -> ciemna | M4: =Info!B70 -> 44301 | N4: od br
B5: XX | C5: wpisz : r-m-d | D5: max. 15 znaków | E5: min. 100 -5% | F5: min. 150 | G5: max. Kol. F/5 | H5: min. 20 | I5: 5 | J5: =Info!C77 -> czarna | M5: =Info!B71 -> 44469 | N5: do br
B6: 1. | C6: 2021-04-25 | D6: ZŁOTÓW | E6: 142.84 | F6: 3286 | G6: 309 | H6: 66 | I6: 6 | J6: =Info!C78 -> czerwono-nakr. | L6: =IF(AND(C6>=$M$2,C6<=$M$3,E6>=95,E6<=2000,F6>=150,H6>=20),E6,0) -> 0 | M6: =IF(AND(C6>=$M$4,C6<=$M$5,E6>=95,E6<=2000,F6>=150,H6>=20),E6,0) -> 142.84
B7: 2. | C7: 2021-05-01 | D7: SZCZECINEK | E7: 168.31 | F7: 3534 | G7: 74 | H7: 65 | I7: 7 | J7: =Info!C79 -> czerwona | L7: =IF(AND(C7>=$M$2,C7<=$M$3,E7>=95,E7<=2000,F7>=150,H7>=20),E7,0) -> 0 | M7: =IF(AND(C7>=$M$4,C7<=$M$5,E7>=95,E7<=2000,F7>=150,H7>=20),E7,0) -> 168.31
B8: 3. | C8: 2021-05-15 | D8: PASEWAKL 1 | E8: 343 | F8: 3320 | G8: 336 | H8: 66 | I8: 8 | J8: =Info!C80 -> płowa | L8: 0 | M8: 343
B9: 4. | C9: 2021-05-30 | D9: PASEWAKL 3 | E9: 343 | F9: 2950 | G9: 140 | H9: 65 | I9: 9 | J9: =Info!C81 -> biała | L9: 0 | M9: 343
B10: 5. | C10: 2021-06-05 | D10: LUNEBURG | E10: 579.54 | F10: 2262 | G10: 159 | H10: 59 | I10: 10 | J10: =Info!C82 -> szpakowata | L10: 0 | M10: 579.54
B11: 6. | C11: 2021-06-19 | D11: PASEWAKL 5 | E11: 343 | F11: 2343 | G11: 29 | H11: 60 | I11: 11 | J11: =Info!C83 -> niebiesko-pstra | L11: 0 | M11: 343
A12: =Ex!A12 -> MIĘDZYNARODOWE CENTRUM | B12: 7. | C12: 2021-06-26 | D12: WISMAR | E12: 514.03 | F12: 1866 | G12: 169 | H12: 52 | I12: 12 | J12: =Info!C84 -> nieb-nakr-pstra | L12: 0 | M12: 514.03
A13: =Ex!A13 -> KONGRESOWE w Katowicach | B13: 8. | C13: 2021-07-03 | D13: PASEWAKL 6 | E13: 343 | F13: 2001 | G13: 125 | H13: 55 | I13: 13 | J13: =Info!C85 -> ciem-nakr-pstra | L13: 0 | M13: 343
A14: =Ex!A14 -> 07-09 stycznia 2022 roku | B14: 9. | C14: 2021-07-10 | D14: SOGEL 1 | E14: 783.24 | F14: 1251 | G14: 93 | H14: 49 | I14: 14 | J14: =Info!C86 -> ciemno-pstra | L14: 0 | M14: 783.24
A15: Imię i NAZWISKO Hodowcy | B15: 10. | I15: 15 | J15: =Info!C87 -> czarno-pstra | L15: 0 | M15: 0
B16: 11. | I16: 16 | J16: =Info!C88 -> czer-nakr-pstra | L16: 0 | M16: 0
A17: Jerzy KORCZAK | B17: 12. | I17: 17 | J17: =Info!C89 -> czerwono-pstra | L17: 0 | M17: 0
B18: 13. | I18: 18 | J18: =Info!C90 -> płowo-pstra | L18: 0 | M18: 0
A19: Oddział PZHGP | B19: 14. | I19: 19 | J19: =Info!C91 -> szpak-pstra | L19: 0 | M19: 0
B20: 15. | I20: 20 | J20: =Info!C92 -> czerwono-szpak | L20: 0 | M20: 0
A21: GRUDZIĄDZ | B21: 16. | I21: 21 | J21: =Info!C93 -> czer-szp-pstra | L21: 0 | M21: 0
B22: 17. | I22: 22 | J22: =Info!C94 -> płowo-szpak | L22: 0 | M22: 0
A23: Okręg PZHGP | B23: 18. | I23: 23 | J23: =Info!C95 -> pł-szpak-pstra | L23: 0 | M23: 0
A24: =Info!H1 -> TORUŃ | B24: 19. | L24: 0 | M24: 0
B25: 20. | L25: 0 | M25: 0
A26: Kategoria wystawowa | B26: =Ex!B26 -> Kkm za 2020 rok | E26: =SUM(L6:L25) -> 0 | F26: Razem kkm :
A27: STANDARD - Samczyki (1/0) | B27: =Ex!B27 -> Kkm za 2021 rok | E27: =IF(OR(SUM(M6:M25)>750,SUM(M6:M25)=0),SUM(M6:M25),"MAŁO") -> 3559.96 | F27: =IF(AND(E27<>"MAŁO",OR(SUM(L6:M25)>=2500,SUM(L6:M25)=0)),SUM(L6:M25),"MAŁO") -> 3559.96 | H27: kkm

Sheet ST-1-4
A1: =Ex!A1 -> 70. OGÓLNOPOLSKA WYSTAWA GOŁĘBI POCZTOWYCH | B1: =Rep!A8 -> 0 | D1: Obrączka Rodowa | E1: PL-0241-19-573 | H1: 1 | I1: 1 | J1: =Info!C73 -> niebieska
D2: Barwa | E2: niebieska | H2: Płeć | I2: 2 | J2: =Info!C74 -> niebiesko-nakr. | M2: =Info!B68 -> 43936 | N2: od ubr
B3: Nr Klatki | D3: Zestawienie lotów | I3: 3 | J3: =Info!C75 -> ciemno-nakrap. | M3: =Info!B69 -> 44104 | N3: do ubr
B4: Lp. | C4: Data lotu | D4: Miejscowość wypuszczenia | E4: km | F4: Włoż. Goł. Na lot | G4: Nr konkursu | H4: Ilość Hodowców | I4: 4 | J4: =Info!C76 -> ciemna | M4: =Info!B70 -> 44301 | N4: od br
B5: XX | C5: wpisz : r-m-d | D5: max. 15 znaków | E5: min. 100 -5% | F5: min. 150 | G5: max. Kol. F/5 | H5: min. 20 | I5: 5 | J5: =Info!C77 -> czarna | M5: =Info!B71 -> 44469 | N5: do br
B6: 1. | C6: 2020-05-17 | D6: SĘPULNO KRAJEŃSKIE | E6: 149.84 | F6: 4017 | G6: 141 | H6: 64 | I6: 6 | J6: =Info!C78 -> czerwono-nakr. | L6: =IF(AND(C6>=$M$2,C6<=$M$3,E6>=95,E6<=2000,F6>=150,H6>=20),E6,0) -> 149.84 | M6: =IF(AND(C6>=$M$4,C6<=$M$5,E6>=95,E6<=2000,F6>=150,H6>=20),E6,0) -> 0
B7: 2. | C7: 2021-05-24 | D7: MIROSŁAWIEC | E7: 245.86 | F7: 3805 | G7: 34 | H7: 66 | I7: 7 | J7: =Info!C79 -> czerwona | L7: =IF(AND(C7>=$M$2,C7<=$M$3,E7>=95,E7<=2000,F7>=150,H7>=20),E7,0) -> 0 | M7: =IF(AND(C7>=$M$4,C7<=$M$5,E7>=95,E7<=2000,F7>=150,H7>=20),E7,0) -> 245.86
B8: 3. | C8: 2020-06-07 | D8: SZCZECIN DĄBIE | E8: 343.19 | F8: 2587 | G8: 96 | H8: 58 | I8: 8 | J8: =Info!C80 -> płowa | L8: 343.19 | M8: 0
B9: 4. | C9: 2021-05-23 | D9: SĘPULNO KRAJEŃSKIE | E9: 149.84 | F9: 4235 | G9: 680 | H9: 61 | I9: 9 | J9: =Info!C81 -> biała | L9: 0 | M9: 149.84
B10: 5. | C10: 2021-05-30 | D10: ZŁOTÓW | E10: 182.14 | F10: 4247 | G10: 46 | H10: 66 | I10: 10 | J10: =Info!C82 -> szpakowata | L10: 0 | M10: 182.14
B11: 6. | C11: 2021-06-13 | D11: MYŚLIBÓRZ | E11: 331.85 | F11: 3451 | G11: 125 | H11: 60 | I11: 11 | J11: =Info!C83 -> niebiesko-pstra | L11: 0 | M11: 331.85
A12: =Ex!A12 -> MIĘDZYNARODOWE CENTRUM | B12: 7. | C12: 2021-06-26 | D12: WISMAR | E12: 554.76 | F12: 2361 | G12: 146 | H12: 52 | I12: 12 | J12: =Info!C84 -> nieb-nakr-pstra | L12: 0 | M12: 554.76
A13: =Ex!A13 -> KONGRESOWE w Katowicach | B13: 8. | C13: 2021-07-03 | D13: WISMAR | E13: 554.76 | F13: 2332 | G13: 113 | H13: 50 | I13: 13 | J13: =Info!C85 -> ciem-nakr-pstra | L13: 0 | M13: 554.76
A14: =Ex!A14 -> 07-09 stycznia 2022 roku | B14: 9. | C14: 2021-07-17 | D14: WISMAR | E14: 554.76 | F14: 1664 | G14: 5 | H14: 43 | I14: 14 | J14: =Info!C86 -> ciemno-pstra | L14: 0 | M14: 554.76
A15: Imię i NAZWISKO Hodowcy | B15: 10. | I15: 15 | J15: =Info!C87 -> czarno-pstra | L15: 0 | M15: 0
B16: 11. | I16: 16 | J16: =Info!C88 -> czer-nakr-pstra | L16: 0 | M16: 0
A17: W. & A. DŁUGOKĘCKI | B17: 12. | I17: 17 | J17: =Info!C89 -> czerwono-pstra | L17: 0 | M17: 0
B18: 13. | I18: 18 | J18: =Info!C90 -> płowo-pstra | L18: 0 | M18: 0
A19: Oddział PZHGP | B19: 14. | I19: 19 | J19: =Info!C91 -> szpak-pstra | L19: 0 | M19: 0
B20: 15. | I20: 20 | J20: =Info!C92 -> czerwono-szpak | L20: 0 | M20: 0
A21: IŁAWA | B21: 16. | I21: 21 | J21: =Info!C93 -> czer-szp-pstra | L21: 0 | M21: 0
B22: 17. | I22: 22 | J22: =Info!C94 -> płowo-szpak | L22: 0 | M22: 0
A23: Okręg PZHGP | B23: 18. | I23: 23 | J23: =Info!C95 -> pł-szpak-pstra | L23: 0 | M23: 0
A24: =Info!H1 -> TORUŃ | B24: 19. | L24: 0 | M24: 0
B25: 20. | L25: 0 | M25: 0
A26: Kategoria wystawowa | B26: =Ex!B26 -> Kkm za 2020 rok | E26: =SUM(L6:L25) -> 493.03 | F26: Razem kkm :
A27: STANDARD - Samczyki (1/0) | B27: =Ex!B27 -> Kkm za 2021 rok | E27: =IF(OR(SUM(M6:M25)>750,SUM(M6:M25)=0),SUM(M6:M25),"MAŁO") -> 2573.97 | F27: =IF(AND(E27<>"MAŁO",OR(SUM(L6:M25)>=2500,SUM(L6:M25)=0)),SUM(L6:M25),"MAŁO") -> 3067 | H27: kkm

Sheet ST-1-5
A1: =Ex!A1 -> 70. OGÓLNOPOLSKA WYSTAWA GOŁĘBI POCZTOWYCH | B1: =Rep!A9 -> 0 | D1: Obrączka Rodowa | E1: PL-0321-19-9169 | H1: 1 | I1: 1 | J1: =Info!C73 -> niebieska
D2: Barwa | E2: nieb-nakr-pstra | H2: Płeć | I2: 2 | J2: =Info!C74 -> niebiesko-nakr. | M2: =Info!B68 -> 43936 | N2: od ubr
B3: Nr Klatki | D3: Zestawienie lotów | I3: 3 | J3: =Info!C75 -> ciemno-nakrap. | M3: =Info!B69 -> 44104 | N3: do ubr
B4: Lp. | C4: Data lotu | D4: Miejscowość wypuszczenia | E4: km | F4: Włoż. Goł. Na lot | G4: Nr konkursu | H4: Ilość Hodowców | I4: 4 | J4: =Info!C76 -> ciemna | M4: =Info!B70 -> 44301 | N4: od br
B5: XX | C5: wpisz : r-m-d | D5: max. 15 znaków | E5: min. 100 -5% | F5: min. 150 | G5: max. Kol. F/5 | H5: min. 20 | I5: 5 | J5: =Info!C77 -> czarna | M5: =Info!B71 -> 44469 | N5: do br
B6: 1. | C6: 2021-05-30 | D6: ZŁOTÓW | E6: 122.87 | F6: 4998 | G6: 48 | H6: 76 | I6: 6 | J6: =Info!C78 -> czerwono-nakr. | L6: =IF(AND(C6>=$M$2,C6<=$M$3,E6>=95,E6<=2000,F6>=150,H6>=20),E6,0) -> 0 | M6: =IF(AND(C6>=$M$4,C6<=$M$5,E6>=95,E6<=2000,F6>=150,H6>=20),E6,0) -> 122.87
B7: 2. | C7: 2021-06-03 | D7: KALISZ POMORSKI | E7: 196.26 | F7: 4771 | G7: 256 | H7: 74 | I7: 7 | J7: =Info!C79 -> czerwona | L7: =IF(AND(C7>=$M$2,C7<=$M$3,E7>=95,E7<=2000,F7>=150,H7>=20),E7,0) -> 0 | M7: =IF(AND(C7>=$M$4,C7<=$M$5,E7>=95,E7<=2000,F7>=150,H7>=20),E7,0) -> 196.26
B8: 3. | C8: 2021-06-06 | D8: MILMERSDORF 1 | E8: 348.55 | F8: 4388 | G8: 352 | H8: 73 | I8: 8 | J8: =Info!C80 -> płowa | L8: 0 | M8: 348.55
B9: 4. | C9: 2021-06-20 | D9: MILMERSDORF 3 | E9: 348.55 | F9: 2484 | G9: 294 | H9: 65 | I9: 9 | J9: =Info!C81 -> biała | L9: 0 | M9: 348.55
B10: 5. | C10: 2021-06-27 | D10: UELZEN 1 | E10: 554.79 | F10: 1917 | G10: 1 | H10: 61 | I10: 10 | J10: =Info!C82 -> szpakowata | L10: 0 | M10: 554.79
B11: 6. | C11: 2021-07-04 | D11: UELZEN 2 | E11: 554.79 | F11: 1637 | G11: 55 | H11: 62 | I11: 11 | J11: =Info!C83 -> niebiesko-pstra | L11: 0 | M11: 554.79
A12: =Ex!A12 -> MIĘDZYNARODOWE CENTRUM | B12: 7. | C12: 2021-07-18 | D12: UELZEN 3 | E12: 554.79 | F12: 1274 | G12: 159 | H12: 54 | I12: 12 | J12: =Info!C84 -> nieb-nakr-pstra | L12: 0 | M12: 554.79
A13: =Ex!A13 -> KONGRESOWE w Katowicach | B13: 8. | I13: 13 | J13: =Info!C85 -> ciem-nakr-pstra | L13: 0 | M13: 0
A14: =Ex!A14 -> 07-09 stycznia 2022 roku | B14: 9. | I14: 14 | J14: =Info!C86 -> ciemno-pstra | L14: 0 | M14: 0
A15: Imię i NAZWISKO Hodowcy | B15: 10. | I15: 15 | J15: =Info!C87 -> czarno-pstra | L15: 0 | M15: 0
B16: 11. | I16: 16 | J16: =Info!C88 -> czer-nakr-pstra | L16: 0 | M16: 0
A17: Zbigniew BUGAJSKI | B17: 12. | I17: 17 | J17: =Info!C89 -> czerwono-pstra | L17: 0 | M17: 0
B18: 13. | I18: 18 | J18: =Info!C90 -> płowo-pstra | L18: 0 | M18: 0
A19: Oddział PZHGP | B19: 14. | I19: 19 | J19: =Info!C91 -> szpak-pstra | L19: 0 | M19: 0
B20: 15. | I20: 20 | J20: =Info!C92 -> czerwono-szpak | L20: 0 | M20: 0
A21: CHEŁMŻA | B21: 16. | I21: 21 | J21: =Info!C93 -> czer-szp-pstra | L21: 0 | M21: 0
B22: 17. | I22: 22 | J22: =Info!C94 -> płowo-szpak | L22: 0 | M22: 0
A23: Okręg PZHGP | B23: 18. | I23: 23 | J23: =Info!C95 -> pł-szpak-pstra | L23: 0 | M23: 0
A24: =Info!H1 -> TORUŃ | B24: 19. | L24: 0 | M24: 0
B25: 20. | L25: 0 | M25: 0
A26: Kategoria wystawowa | B26: =Ex!B26 -> Kkm za 2020 rok | E26: =SUM(L6:L25) -> 0 | F26: Razem kkm :
A27: STANDARD - Samczyki (1/0) | B27: =Ex!B27 -> Kkm za 2021 rok | E27: =IF(OR(SUM(M6:M25)>750,SUM(M6:M25)=0),SUM(M6:M25),"MAŁO") -> 2680.6 | F27: =IF(AND(E27<>"MAŁO",OR(SUM(L6:M25)>=2500,SUM(L6:M25)=0)),SUM(L6:M25),"MAŁO") -> 2680.6 | H27: kkm

Sheet ST-0-1
A1: =Ex!A1 -> 70. OGÓLNOPOLSKA WYSTAWA GOŁĘBI POCZTOWYCH | B1: =Rep!A11 -> 0 | D1: Obrączka Rodowa | E1: PL-0241-18-166 | H1: 0 | I1: 1 | J1: =Info!C73 -> niebieska
D2: Barwa | E2: niebieska | H2: Płeć | I2: 2 | J2: =Info!C74 -> niebiesko-nakr. | M2: =Info!B68 -> 43936 | N2: od ubr
B3: Nr Klatki | D3: Zestawienie lotów | I3: 3 | J3: =Info!C75 -> ciemno-nakrap. | M3: =Info!B69 -> 44104 | N3: do ubr
B4: Lp. | C4: Data lotu | D4: Miejscowość wypuszczenia | E4: km | F4: Włoż. Goł. Na lot | G4: Nr konkursu | H4: Ilość Hodowców | I4: 4 | J4: =Info!C76 -> ciemna | M4: =Info!B70 -> 44301 | N4: od br
B5: XX | C5: wpisz : r-m-d | D5: max. 15 znaków | E5: min. 100 -5% | F5: min. 150 | G5: max. Kol. F/5 | H5: min. 20 | I5: 5 | J5: =Info!C77 -> czarna | M5: =Info!B71 -> 44469 | N5: do br
B6: 1. | C6: 2021-05-23 | D6: SĘPULNO KRAJEŃSKIE | E6: 149.84 | F6: 4235 | G6: 731 | H6: 61 | I6: 6 | J6: =Info!C78 -> czerwono-nakr. | L6: =IF(AND(C6>=$M$2,C6<=$M$3,E6>=95,E6<=2000,F6>=150,H6>=20),E6,0) -> 0 | M6: =IF(AND(C6>=$M$4,C6<=$M$5,E6>=95,E6<=2000,F6>=150,H6>=20),E6,0) -> 149.84
B7: 2. | C7: 2021-05-30 | D7: ZŁOTÓW | E7: 182.14 | F7: 4247 | G7: 761 | H7: 66 | I7: 7 | J7: =Info!C79 -> czerwona | L7: =IF(AND(C7>=$M$2,C7<=$M$3,E7>=95,E7<=2000,F7>=150,H7>=20),E7,0) -> 0 | M7: =IF(AND(C7>=$M$4,C7<=$M$5,E7>=95,E7<=2000,F7>=150,H7>=20),E7,0) -> 182.14
B8: 3. | C8: 2021-06-20 | D8: MYŚLIBÓRZ | E8: 331.85 | F8: 2932 | G8: 219 | H8: 53 | I8: 8 | J8: =Info!C80 -> płowa | L8: 0 | M8: 331.85
B9: 4. | C9: 2021-07-03 | D9: WISMAR | E9: 554.76 | F9: 2332 | G9: 73 | H9: 50 | I9: 9 | J9: =Info!C81 -> biała | L9: 0 | M9: 554.76
B10: 5. | C10: 2021-07-17 | D10: WISMAR | E10: 554.76 | F10: 1664 | G10: 149 | H10: 43 | I10: 10 | J10: =Info!C82 -> szpakowata | L10: 0 | M10: 554.76
B11: 6. | C11: 2021-07-24 | D11: SOGEL | E11: 822.36 | F11: 880 | G11: 82 | H11: 36 | I11: 11 | J11: =Info!C83 -> niebiesko-pstra | L11: 0 | M11: 822.36
A12: =Ex!A12 -> MIĘDZYNARODOWE CENTRUM | B12: 7. | I12: 12 | J12: =Info!C84 -> nieb-nakr-pstra | L12: 0 | M12: 0
A13: =Ex!A13 -> KONGRESOWE w Katowicach | B13: 8. | I13: 13 | J13: =Info!C85 -> ciem-nakr-pstra | L13: 0 | M13: 0
A14: =Ex!A14 -> 07-09 stycznia 2022 roku | B14: 9. | I14: 14 | J14: =Info!C86 -> ciemno-pstra | L14: 0 | M14: 0
A15: Imię i NAZWISKO Hodowcy | B15: 10. | I15: 15 | J15: =Info!C87 -> czarno-pstra | L15: 0 | M15: 0
B16: 11. | I16: 16 | J16: =Info!C88 -> czer-nakr-pstra | L16: 0 | M16: 0
A17: W. & A. DŁUGOKĘCKI | B17: 12. | I17: 17 | J17: =Info!C89 -> czerwono-pstra | L17: 0 | M17: 0
B18: 13. | I18: 18 | J18: =Info!C90 -> płowo-pstra | L18: 0 | M18: 0
A19: Oddział PZHGP | B19: 14. | I19: 19 | J19: =Info!C91 -> szpak-pstra | L19: 0 | M19: 0
B20: 15. | I20: 20 | J20: =Info!C92 -> czerwono-szpak | L20: 0 | M20: 0
A21: IŁAWA | B21: 16. | I21: 21 | J21: =Info!C93 -> czer-szp-pstra | L21: 0 | M21: 0
B22: 17. | I22: 22 | J22: =Info!C94 -> płowo-szpak | L22: 0 | M22: 0
A23: Okręg PZHGP | B23: 18. | I23: 23 | J23: =Info!C95 -> pł-szpak-pstra | L23: 0 | M23: 0
A24: =Info!H1 -> TORUŃ | B24: 19. | L24: 0 | M24: 0
B25: 20. | L25: 0 | M25: 0
A26: Kategoria wystawowa | B26: =Ex!B26 -> Kkm za 2020 rok | E26: =SUM(L6:L25) -> 0 | F26: Razem kkm :
A27: STANDARD - Samiczki (0/1) | B27: =Ex!B27 -> Kkm za 2021 rok | E27: =IF(OR(SUM(M6:M25)>600,SUM(M6:M25)=0),SUM(M6:M25),"MAŁO") -> 2595.71 | F27: =IF(AND(E27<>"MAŁO",OR(SUM(L6:M25)>=2000,SUM(L6:M25)=0)),SUM(L6:M25),"MAŁO") -> 2595.71 | H27: kkm

Sheet ST-0-2
A1: =Ex!A1 -> 70. OGÓLNOPOLSKA WYSTAWA GOŁĘBI POCZTOWYCH | B1: =Rep!A12 -> 0 | D1: Obrączka Rodowa | E1: PL-0323-19-49 | H1: 0 | I1: 1 | J1: =Info!C73 -> niebieska
D2: Barwa | E2: niebiesko-nakr. | H2: Płeć | I2: 2 | J2: =Info!C74 -> niebiesko-nakr. | M2: =Info!B68 -> 43936 | N2: od ubr
B3: Nr Klatki | D3: Zestawienie lotów | I3: 3 | J3: =Info!C75 -> ciemno-nakrap. | M3: =Info!B69 -> 44104 | N3: do ubr
B4: Lp. | C4: Data lotu | D4: Miejscowość wypuszczenia | E4: km | F4: Włoż. Goł. Na lot | G4: Nr konkursu | H4: Ilość Hodowców | I4: 4 | J4: =Info!C76 -> ciemna | M4: =Info!B70 -> 44301 | N4: od br
B5: XX | C5: wpisz : r-m-d | D5: max. 15 znaków | E5: min. 100 -5% | F5: min. 150 | G5: max. Kol. F/5 | H5: min. 20 | I5: 5 | J5: =Info!C77 -> czarna | M5: =Info!B71 -> 44469 | N5: do br
B6: 1. | C6: 2021-04-25 | D6: ZŁOTÓW | E6: 129.31 | F6: 3286 | G6: 506 | H6: 66 | I6: 6 | J6: =Info!C78 -> czerwono-nakr. | L6: =IF(AND(C6>=$M$2,C6<=$M$3,E6>=95,E6<=2000,F6>=150,H6>=20),E6,0) -> 0 | M6: =IF(AND(C6>=$M$4,C6<=$M$5,E6>=95,E6<=2000,F6>=150,H6>=20),E6,0) -> 129.31
B7: 2. | C7: 2021-05-01 | D7: SZCZECINEK | E7: 156.88 | F7: 3534 | G7: 44 | H7: 65 | I7: 7 | J7: =Info!C79 -> czerwona | L7: =IF(AND(C7>=$M$2,C7<=$M$3,E7>=95,E7<=2000,F7>=150,H7>=20),E7,0) -> 0 | M7: =IF(AND(C7>=$M$4,C7<=$M$5,E7>=95,E7<=2000,F7>=150,H7>=20),E7,0) -> 156.88
B8: 3. | C8: 2021-05-15 | D8: PASEWALK 1 | E8: 330.29 | F8: 3320 | G8: 586 | H8: 66 | I8: 8 | J8: =Info!C80 -> płowa | L8: 0 | M8: 330.29
B9: 4. | C9: 2021-05-23 | D9: PASEWALK 2 | E9: 330.29 | F9: 3126 | G9: 282 | H9: 68 | I9: 9 | J9: =Info!C81 -> biała | L9: 0 | M9: 330.29
B10: 5. | C10: 2021-05-30 | D10: PASEWALK 3 | E10: 330.29 | F10: 2950 | G10: 321 | H10: 65 | I10: 10 | J10: =Info!C82 -> szpakowata | L10: 0 | M10: 330.29
B11: 6. | C11: 2021-06-05 | D11: LUNEBURG | E11: 566.63 | F11: 2262 | G11: 276 | H11: 59 | I11: 11 | J11: =Info!C83 -> niebiesko-pstra | L11: 0 | M11: 566.63
A12: =Ex!A12 -> MIĘDZYNARODOWE CENTRUM | B12: 7. | C12: 2021-06-14 | D12: PASEWALK 4 | E12: 330.29 | F12: 2345 | G12: 429 | H12: 60 | I12: 12 | J12: =Info!C84 -> nieb-nakr-pstra | L12: 0 | M12: 330.29
A13: =Ex!A13 -> KONGRESOWE w Katowicach | B13: 8. | C13: 2021-06-19 | D13: PASEWALK 5 | E13: 330.29 | F13: 2343 | G13: 317 | H13: 60 | I13: 13 | J13: =Info!C85 -> ciem-nakr-pstra | L13: 0 | M13: 330.29
A14: =Ex!A14 -> 07-09 stycznia 2022 roku | B14: 9. | C14: 2021-07-03 | D14: PASEWALK 6 | E14: 330.29 | F14: 2001 | G14: 90 | H14: 55 | I14: 14 | J14: =Info!C86 -> ciemno-pstra | L14: 0 | M14: 330.29
A15: Imię i NAZWISKO Hodowcy | B15: 10. | C15: 2021-07-24 | D15: SOGEL 2 | E15: 770.1 | F15: 965 | G15: 48 | H15: 44 | I15: 15 | J15: =Info!C87 -> czarno-pstra | L15: 0 | M15: 770.1
B16: 11. | I16: 16 | J16: =Info!C88 -> czer-nakr-pstra | L16: 0 | M16: 0
A17: Marcin ŻEBROWSKI | B17: 12. | I17: 17 | J17: =Info!C89 -> czerwono-pstra | L17: 0 | M17: 0
B18: 13. | I18: 18 | J18: =Info!C90 -> płowo-pstra | L18: 0 | M18: 0
A19: Oddział PZHGP | B19: 14. | I19: 19 | J19: =Info!C91 -> szpak-pstra | L19: 0 | M19: 0
B20: 15. | I20: 20 | J20: =Info!C92 -> czerwono-szpak | L20: 0 | M20: 0
A21: GRUDZIĄDZ | B21: 16. | I21: 21 | J21: =Info!C93 -> czer-szp-pstra | L21: 0 | M21: 0
B22: 17. | I22: 22 | J22: =Info!C94 -> płowo-szpak | L22: 0 | M22: 0
A23: Okręg PZHGP | B23: 18. | I23: 23 | J23: =Info!C95 -> pł-szpak-pstra | L23: 0 | M23: 0
A24: =Info!H1 -> TORUŃ | B24: 19. | L24: 0 | M24: 0
B25: 20. | L25: 0 | M25: 0
A26: Kategoria wystawowa | B26: =Ex!B26 -> Kkm za 2020 rok | E26: =SUM(L6:L25) -> 0 | F26: Razem kkm :
A27: STANDARD - Samiczki (0/1) | B27: =Ex!B27 -> Kkm za 2021 rok | E27: =IF(OR(SUM(M6:M25)>600,SUM(M6:M25)=0),SUM(M6:M25),"MAŁO") -> 3604.66 | F27: =IF(AND(E27<>"MAŁO",OR(SUM(L6:M25)>=2000,SUM(L6:M25)=0)),SUM(L6:M25),"MAŁO") -> 3604.66 | H27: kkm

Sheet ST-0-3
A1: =Ex!A1 -> 70. OGÓLNOPOLSKA WYSTAWA GOŁĘBI POCZTOWYCH | B1: =Rep!A13 -> 0 | D1: Obrączka Rodowa | E1: PL-0326-19-8107 | H1: 0 | I1: 1 | J1: =Info!C73 -> niebieska
D2: Barwa | E2: niebiesko-nakr. | H2: Płeć | I2: 2 | J2: =Info!C74 -> niebiesko-nakr. | M2: =Info!B68 -> 43936 | N2: od ubr
B3: Nr Klatki | D3: Zestawienie lotów | I3: 3 | J3: =Info!C75 -> ciemno-nakrap. | M3: =Info!B69 -> 44104 | N3: do ubr
B4: Lp. | C4: Data lotu | D4: Miejscowość wypuszczenia | E4: km | F4: Włoż. Goł. Na lot | G4: Nr konkursu | H4: Ilość Hodowców | I4: 4 | J4: =Info!C76 -> ciemna | M4: =Info!B70 -> 44301 | N4: od br
B5: XX | C5: wpisz : r-m-d | D5: max. 15 znaków | E5: min. 100 -5% | F5: min. 150 | G5: max. Kol. F/5 | H5: min. 20 | I5: 5 | J5: =Info!C77 -> czarna | M5: =Info!B71 -> 44469 | N5: do br
B6: 1. | C6: 2021-05-30 | D6: KALISZ POMORSKI | E6: 196.49 | F6: 7499 | G6: 570 | H6: 144 | I6: 6 | J6: =Info!C78 -> czerwono-nakr. | L6: =IF(AND(C6>=$M$2,C6<=$M$3,E6>=95,E6<=2000,F6>=150,H6>=20),E6,0) -> 0 | M6: =IF(AND(C6>=$M$4,C6<=$M$5,E6>=95,E6<=2000,F6>=150,H6>=20),E6,0) -> 196.49
B7: 2. | C7: 2021-06-06 | D7: PASEWALK 2 | E7: 325.29 | F7: 6970 | G7: 561 | H7: 141 | I7: 7 | J7: =Info!C79 -> czerwona | L7: =IF(AND(C7>=$M$2,C7<=$M$3,E7>=95,E7<=2000,F7>=150,H7>=20),E7,0) -> 0 | M7: =IF(AND(C7>=$M$4,C7<=$M$5,E7>=95,E7<=2000,F7>=150,H7>=20),E7,0) -> 325.29
B8: 3. | C8: 2021-07-04 | D8: UELZEN 2 | E8: 553.58 | F8: 3434 | G8: 97 | H8: 111 | I8: 8 | J8: =Info!C80 -> płowa | L8: 0 | M8: 553.58
B9: 4. | C9: 2021-07-18 | D9: UELZEN 3 | E9: 553.58 | F9: 2391 | G9: 9 | H9: 84 | I9: 9 | J9: =Info!C81 -> biała | L9: 0 | M9: 553.58
B10: 5. | C10: 2021-07-24 | D10: SOGEL 2 | E10: 759.84 | F10: 1517 | G10: 197 | H10: 68 | I10: 10 | J10: =Info!C82 -> szpakowata | L10: 0 | M10: 759.84
B11: 6. | I11: 11 | J11: =Info!C83 -> niebiesko-pstra | L11: 0 | M11: 0
A12: =Ex!A12 -> MIĘDZYNARODOWE CENTRUM | B12: 7. | I12: 12 | J12: =Info!C84 -> nieb-nakr-pstra | L12: 0 | M12: 0
A13: =Ex!A13 -> KONGRESOWE w Katowicach | B13: 8. | I13: 13 | J13: =Info!C85 -> ciem-nakr-pstra | L13: 0 | M13: 0
A14: =Ex!A14 -> 07-09 stycznia 2022 roku | B14: 9. | I14: 14 | J14: =Info!C86 -> ciemno-pstra | L14: 0 | M14: 0
A15: Imię i NAZWISKO Hodowcy | B15: 10. | I15: 15 | J15: =Info!C87 -> czarno-pstra | L15: 0 | M15: 0
B16: 11. | I16: 16 | J16: =Info!C88 -> czer-nakr-pstra | L16: 0 | M16: 0
A17: Maciej KACZMAREK | B17: 12. | I17: 17 | J17: =Info!C89 -> czerwono-pstra | L17: 0 | M17: 0
B18: 13. | I18: 18 | J18: =Info!C90 -> płowo-pstra | L18: 0 | M18: 0
A19: Oddział PZHGP | B19: 14. | I19: 19 | J19: =Info!C91 -> szpak-pstra | L19: 0 | M19: 0
B20: 15. | I20: 20 | J20: =Info!C92 -> czerwono-szpak | L20: 0 | M20: 0
A21: TORUŃ | B21: 16. | I21: 21 | J21: =Info!C93 -> czer-szp-pstra | L21: 0 | M21: 0
B22: 17. | I22: 22 | J22: =Info!C94 -> płowo-szpak | L22: 0 | M22: 0
A23: Okręg PZHGP | B23: 18. | I23: 23 | J23: =Info!C95 -> pł-szpak-pstra | L23: 0 | M23: 0
A24: =Info!H1 -> TORUŃ | B24: 19. | L24: 0 | M24: 0
B25: 20. | L25: 0 | M25: 0
A26: Kategoria wystawowa | B26: =Ex!B26 -> Kkm za 2020 rok | E26: =SUM(L6:L25) -> 0 | F26: Razem kkm :
A27: STANDARD - Samiczki (0/1) | B27: =Ex!B27 -> Kkm za 2021 rok | E27: =IF(OR(SUM(M6:M25)>600,SUM(M6:M25)=0),SUM(M6:M25),"MAŁO") -> 2388.78 | F27: =IF(AND(E27<>"MAŁO",OR(SUM(L6:M25)>=2000,SUM(L6:M25)=0)),SUM(L6:M25),"MAŁO") -> 2388.78 | H27: kkm

Sheet ST-0-4
A1: =Ex!A1 -> 70. OGÓLNOPOLSKA WYSTAWA GOŁĘBI POCZTOWYCH | B1: =Rep!A14 -> 0 | D1: Obrączka Rodowa | E1: PL-0326-20-14735 | H1: 0 | I1: 1 | J1: =Info!C73 -> niebieska
D2: Barwa | E2: niebiesko-pstra | H2: Płeć | I2: 2 | J2: =Info!C74 -> niebiesko-nakr. | M2: =Info!B68 -> 43936 | N2: od ubr
B3: Nr Klatki | D3: Zestawienie lotów | I3: 3 | J3: =Info!C75 -> ciemno-nakrap. | M3: =Info!B69 -> 44104 | N3: do ubr
B4: Lp. | C4: Data lotu | D4: Miejscowość wypuszczenia | E4: km | F4: Włoż. Goł. Na lot | G4: Nr konkursu | H4: Ilość Hodowców | I4: 4 | J4: =Info!C76 -> ciemna | M4: =Info!B70 -> 44301 | N4: od br
B5: XX | C5: wpisz : r-m-d | D5: max. 15 znaków | E5: min. 100 -5% | F5: min. 150 | G5: max. Kol. F/5 | H5: min. 20 | I5: 5 | J5: =Info!C77 -> czarna | M5: =Info!B71 -> 44469 | N5: do br
B6: 1. | C6: 2021-05-24 | D6: WAŁCZ | E6: 164.57 | F6: 7473 | G6: 1147 | H6: 133 | I6: 6 | J6: =Info!C78 -> czerwono-nakr. | L6: =IF(AND(C6>=$M$2,C6<=$M$3,E6>=95,E6<=2000,F6>=150,H6>=20),E6,0) -> 0 | M6: =IF(AND(C6>=$M$4,C6<=$M$5,E6>=95,E6<=2000,F6>=150,H6>=20),E6,0) -> 164.57
B7: 2. | C7: 2021-05-30 | D7: KALISZ POMORSKI | E7: 201.37 | F7: 7499 | G7: 65 | H7: 144 | I7: 7 | J7: =Info!C79 -> czerwona | L7: =IF(AND(C7>=$M$2,C7<=$M$3,E7>=95,E7<=2000,F7>=150,H7>=20),E7,0) -> 0 | M7: =IF(AND(C7>=$M$4,C7<=$M$5,E7>=95,E7<=2000,F7>=150,H7>=20),E7,0) -> 201.37
B8: 3. | C8: 2021-06-06 | D8: PASWALK 1 | E8: 330.03 | F8: 6970 | G8: 214 | H8: 141 | I8: 8 | J8: =Info!C80 -> płowa | L8: 0 | M8: 330.03
B9: 4. | C9: 2021-06-14 | D9: PASWALK 2 | E9: 330.03 | F9: 6017 | G9: 273 | H9: 141 | I9: 9 | J9: =Info!C81 -> biała | L9: 0 | M9: 330.03
B10: 5. | C10: 2021-06-20 | D10: NEUBRANDENBURG | E10: 380.74 | F10: 4993 | G10: 31 | H10: 128 | I10: 10 | J10: =Info!C82 -> szpakowata | L10: 0 | M10: 380.74
B11: 6. | C11: 2021-06-27 | D11: UELZEN 1 | E11: 559.05 | F11: 4277 | G11: 6 | H11: 128 | I11: 11 | J11: =Info!C83 -> niebiesko-pstra | L11: 0 | M11: 559.05
A12: =Ex!A12 -> MIĘDZYNARODOWE CENTRUM | B12: 7. | C12: 2021-07-04 | D12: UELZEN 2 | E12: 559.05 | F12: 3434 | G12: 93 | H12: 111 | I12: 12 | J12: =Info!C84 -> nieb-nakr-pstra | L12: 0 | M12: 559.05
A13: =Ex!A13 -> KONGRESOWE w Katowicach | B13: 8. | C13: 2021-07-18 | D13: UELZEN 3 | E13: 559.05 | F13: 2391 | G13: 85 | H13: 84 | I13: 13 | J13: =Info!C85 -> ciem-nakr-pstra | L13: 0 | M13: 559.05
A14: =Ex!A14 -> 07-09 stycznia 2022 roku | B14: 9. | I14: 14 | J14: =Info!C86 -> ciemno-pstra | L14: 0 | M14: 0
A15: Imię i NAZWISKO Hodowcy | B15: 10. | I15: 15 | J15: =Info!C87 -> czarno-pstra | L15: 0 | M15: 0
B16: 11. | I16: 16 | J16: =Info!C88 -> czer-nakr-pstra | L16: 0 | M16: 0
A17: Tomasz RUMIŃSKI | B17: 12. | I17: 17 | J17: =Info!C89 -> czerwono-pstra | L17: 0 | M17: 0
B18: 13. | I18: 18 | J18: =Info!C90 -> płowo-pstra | L18: 0 | M18: 0
A19: Oddział PZHGP | B19: 14. | I19: 19 | J19: =Info!C91 -> szpak-pstra | L19: 0 | M19: 0
B20: 15. | I20: 20 | J20: =Info!C92 -> czerwono-szpak | L20: 0 | M20: 0
A21: TORUŃ | B21: 16. | I21: 21 | J21: =Info!C93 -> czer-szp-pstra | L21: 0 | M21: 0
B22: 17. | I22: 22 | J22: =Info!C94 -> płowo-szpak | L22: 0 | M22: 0
A23: Okręg PZHGP | B23: 18. | I23: 23 | J23: =Info!C95 -> pł-szpak-pstra | L23: 0 | M23: 0
A24: =Info!H1 -> TORUŃ | B24: 19. | L24: 0 | M24: 0
B25: 20. | L25: 0 | M25: 0
A26: Kategoria wystawowa | B26: =Ex!B26 -> Kkm za 2020 rok | E26: =SUM(L6:L25) -> 0 | F26: Razem kkm :
A27: STANDARD - Samiczki (0/1) | B27: =Ex!B27 -> Kkm za 2021 rok | E27: =IF(OR(SUM(M6:M25)>600,SUM(M6:M25)=0),SUM(M6:M25),"MAŁO") -> 3083.89 | F27: =IF(AND(E27<>"MAŁO",OR(SUM(L6:M25)>=2000,SUM(L6:M25)=0)),SUM(L6:M25),"MAŁO") -> 3083.89 | H27: kkm

Sheet ST-0-5
A1: =Ex!A1 -> 70. OGÓLNOPOLSKA WYSTAWA GOŁĘBI POCZTOWYCH | B1: =Rep!A15 -> 0 | D1: Obrączka Rodowa | E1: PL-0326-19-6673 | H1: 0 | I1: 1 | J1: =Info!C73 -> niebieska
D2: Barwa | E2: niebiesko-nakr. | H2: Płeć | I2: 2 | J2: =Info!C74 -> niebiesko-nakr. | M2: =Info!B68 -> 43936 | N2: od ubr
B3: Nr Klatki | D3: Zestawienie lotów | I3: 3 | J3: =Info!C75 -> ciemno-nakrap. | M3: =Info!B69 -> 44104 | N3: do ubr
B4: Lp. | C4: Data lotu | D4: Miejscowość wypuszczenia | E4: km | F4: Włoż. Goł. Na lot | G4: Nr konkursu | H4: Ilość Hodowców | I4: 4 | J4: =Info!C76 -> ciemna | M4: =Info!B70 -> 44301 | N4: od br
B5: XX | C5: wpisz : r-m-d | D5: max. 15 znaków | E5: min. 100 -5% | F5: min. 150 | G5: max. Kol. F/5 | H5: min. 20 | I5: 5 | J5: =Info!C77 -> czarna | M5: =Info!B71 -> 44469 | N5: do br
B6: 1. | C6: 2021-05-30 | D6: KALISZ POMORSKI | E6: 196.49 | F6: 7499 | G6: 170 | H6: 133 | I6: 6 | J6: =Info!C78 -> czerwono-nakr. | L6: =IF(AND(C6>=$M$2,C6<=$M$3,E6>=95,E6<=2000,F6>=150,H6>=20),E6,0) -> 0 | M6: =IF(AND(C6>=$M$4,C6<=$M$5,E6>=95,E6<=2000,F6>=150,H6>=20),E6,0) -> 196.49
B7: 2. | C7: 2021-06-06 | D7: PASEWALK 1 | E7: 325.29 | F7: 6970 | G7: 370 | H7: 141 | I7: 7 | J7: =Info!C79 -> czerwona | L7: =IF(AND(C7>=$M$2,C7<=$M$3,E7>=95,E7<=2000,F7>=150,H7>=20),E7,0) -> 0 | M7: =IF(AND(C7>=$M$4,C7<=$M$5,E7>=95,E7<=2000,F7>=150,H7>=20),E7,0) -> 325.29
B8: 3. | C8: 2021-06-14 | D8: PASEWALK 2 | E8: 325.29 | F8: 6017 | G8: 58 | H8: 141 | I8: 8 | J8: =Info!C80 -> płowa | L8: 0 | M8: 325.29
B9: 4. | C9: 2021-06-20 | D9: NEUBRANDENURG | E9: 375.97 | F9: 4993 | G9: 123 | H9: 128 | I9: 9 | J9: =Info!C81 -> biała | L9: 0 | M9: 375.97
B10: 5. | C10: 2021-07-04 | D10: UELZEN 2 | E10: 553.58 | F10: 3434 | G10: 66 | H10: 111 | I10: 10 | J10: =Info!C82 -> szpakowata | L10: 0 | M10: 553.58
B11: 6. | C11: 2021-07-18 | D11: UELZEN 3 | E11: 553.58 | F11: 2391 | G11: 313 | H11: 84 | I11: 11 | J11: =Info!C83 -> niebiesko-pstra | L11: 0 | M11: 553.58
A12: =Ex!A12 -> MIĘDZYNARODOWE CENTRUM | B12: 7. | C12: 2021-07-24 | D12: SOGEL 2 | E12: 759.84 | F12: 1517 | G12: 289 | H12: 68 | I12: 12 | J12: =Info!C84 -> nieb-nakr-pstra | L12: 0 | M12: 759.84
A13: =Ex!A13 -> KONGRESOWE w Katowicach | B13: 8. | I13: 13 | J13: =Info!C85 -> ciem-nakr-pstra | L13: 0 | M13: 0
A14: =Ex!A14 -> 07-09 stycznia 2022 roku | B14: 9. | I14: 14 | J14: =Info!C86 -> ciemno-pstra | L14: 0 | M14: 0
A15: Imię i NAZWISKO Hodowcy | B15: 10. | I15: 15 | J15: =Info!C87 -> czarno-pstra | L15: 0 | M15: 0
B16: 11. | I16: 16 | J16: =Info!C88 -> czer-nakr-pstra | L16: 0 | M16: 0
A17: Maciej KACZMAREK | B17: 12. | I17: 17 | J17: =Info!C89 -> czerwono-pstra | L17: 0 | M17: 0
B18: 13. | I18: 18 | J18: =Info!C90 -> płowo-pstra | L18: 0 | M18: 0
A19: Oddział PZHGP | B19: 14. | I19: 19 | J19: =Info!C91 -> szpak-pstra | L19: 0 | M19: 0
B20: 15. | I20: 20 | J20: =Info!C92 -> czerwono-szpak | L20: 0 | M20: 0
A21: TORUŃ | B21: 16. | I21: 21 | J21: =Info!C93 -> czer-szp-pstra | L21: 0 | M21: 0
B22: 17. | I22: 22 | J22: =Info!C94 -> płowo-szpak | L22: 0 | M22: 0
A23: Okręg PZHGP | B23: 18. | I23: 23 | J23: =Info!C95 -> pł-szpak-pstra | L23: 0 | M23: 0
A24: =Info!H1 -> TORUŃ | B24: 19. | L24: 0 | M24: 0
B25: 20. | L25: 0 | M25: 0
A26: Kategoria wystawowa | B26: =Ex!B26 -> Kkm za 2020 rok | E26: =SUM(L6:L25) -> 0 | F26: Razem kkm :
A27: STANDARD - Samiczki (0/1) | B27: =Ex!B27 -> Kkm za 2021 rok | E27: =IF(OR(SUM(M6:M25)>600,SUM(M6:M25)=0),SUM(M6:M25),"MAŁO") -> 3090.04 | F27: =IF(AND(E27<>"MAŁO",OR(SUM(L6:M25)>=2000,SUM(L6:M25)=0)),SUM(L6:M25),"MAŁO") -> 3090.04 | H27: kkm

Sheet STM-1-1
A1: =Ex!A1 -> 70. OGÓLNOPOLSKA WYSTAWA GOŁĘBI POCZTOWYCH | B1: =Rep!A17 -> 0 | D1: Obrączka Rodowa | E1: PL-0241-21-5145 | H1: 1 | I1: 1 | J1: =Info!C73 -> niebieska
D2: Barwa | E2: niebiesko-pstra | H2: Płeć | I2: 2 | J2: =Info!C74 -> niebiesko-nakr. | M2: =Info!B68 -> 43936 | N2: od ubr
B3: Nr Klatki | D3: Zestawienie lotów | I3: 3 | J3: =Info!C75 -> ciemno-nakrap. | M3: =Info!B69 -> 44104 | N3: do ubr
B4: Lp. | C4: Data lotu | D4: Miejscowość wypuszczenia | E4: km | F4: Włoż. Goł. Na lot | G4: Nr konkursu | H4: Ilość Hodowców | I4: 4 | J4: =Info!C76 -> ciemna | M4: =Info!B70 -> 44301 | N4: od br
B5: XX | C5: wpisz : r-m-d | D5: max. 15 znaków | E5: min. 100 -5% | F5: min. 250 | G5: max. Kol. F/5 | H5: min. 20 | I5: 5 | J5: =Info!C77 -> czarna | M5: =Info!B71 -> 44469 | N5: do br
B6: 1. | C6: 2021-09-05 | D6: WĄGROWIEC | E6: 172.75 | F6: 1946 | G6: 301 | H6: 45 | I6: 6 | J6: =Info!C78 -> czerwono-nakr. | L6: =IF(AND(E6>=95,F6>=250,H6>=20),1,0) -> 1
B7: 2. | C7: 2021-09-11 | D7: SZAMOTUŁY | E7: 215.93 | F7: 1600 | G7: 7 | H7: 43 | I7: 7 | J7: =Info!C79 -> czerwona | L7: =IF(AND(E7>=95,F7>=250,H7>=20),1,0) -> 1
B8: 3. | C8: 2021-09-19 | D8: PNIEWY | E8: 240.08 | F8: 998 | G8: 62 | H8: 26 | I8: 8 | J8: =Info!C80 -> płowa | L8: 1
I9: 9 | J9: =Info!C81 -> biała | L9: 0
I10: 10 | J10: =Info!C82 -> szpakowata | L10: 0
I11: 11 | J11: =Info!C83 -> niebiesko-pstra | L11: 0
A12: =Ex!A12 -> MIĘDZYNARODOWE CENTRUM | I12: 12 | J12: =Info!C84 -> nieb-nakr-pstra | L12: 0
A13: =Ex!A13 -> KONGRESOWE w Katowicach | I13: 13 | J13: =Info!C85 -> ciem-nakr-pstra | L13: =SUM(L6:L12) -> 3
A14: =Ex!A14 -> 07-09 stycznia 2022 roku | I14: 14 | J14: =Info!C86 -> ciemno-pstra
A15: Imię i NAZWISKO Hodowcy | I15: 15 | J15: =Info!C87 -> czarno-pstra
I16: 16 | J16: =Info!C88 -> czer-nakr-pstra
A17: BILICKI - GÓRA | I17: 17 | J17: =Info!C89 -> czerwono-pstra
I18: 18 | J18: =Info!C90 -> płowo-pstra
A19: Oddział PZHGP | I19: 19 | J19: =Info!C91 -> szpak-pstra
I20: 20 | J20: =Info!C92 -> czerwono-szpak
A21: IŁAWA | I21: 21 | J21: =Info!C93 -> czer-szp-pstra
I22: 22 | J22: =Info!C94 -> płowo-szpak
A23: Okręg PZHGP | I23: 23 | J23: =Info!C95 -> pł-szpak-pstra
A24: =Info!H1 -> TORUŃ
A26: Kategoria wystawowa | F26: Razem kkm :
A27: STANDARD MŁODE - 1/0 | F27: =IF(L13=0,0,IF(AND(SUM(E6:E12)>=300,L13>=3),SUM(E6:E12),"MAŁO")) -> 628.76 | H27: kkm

Sheet STM-1-2
A1: =Ex!A1 -> 70. OGÓLNOPOLSKA WYSTAWA GOŁĘBI POCZTOWYCH | B1: =Rep!A18 -> 0 | D1: Obrączka Rodowa | E1: PL-0241-21-5207 | H1: 1 | I1: 1 | J1: =Info!C73 -> niebieska
D2: Barwa | E2: niebieska | H2: Płeć | I2: 2 | J2: =Info!C74 -> niebiesko-nakr. | M2: =Info!B68 -> 43936 | N2: od ubr
B3: Nr Klatki | D3: Zestawienie lotów | I3: 3 | J3: =Info!C75 -> ciemno-nakrap. | M3: =Info!B69 -> 44104 | N3: do ubr
B4: Lp. | C4: Data lotu | D4: Miejscowość wypuszczenia | E4: km | F4: Włoż. Goł. Na lot | G4: Nr konkursu | H4: Ilość Hodowców | I4: 4 | J4: =Info!C76 -> ciemna | M4: =Info!B70 -> 44301 | N4: od br
B5: XX | C5: wpisz : r-m-d | D5: max. 15 znaków | E5: min. 100 -5% | F5: min. 250 | G5: max. Kol. F/5 | H5: min. 20 | I5: 5 | J5: =Info!C77 -> czarna | M5: =Info!B71 -> 44469 | N5: do br
B6: 1. | C6: 2021-08-22 | D6: SZUBIN | E6: 126.54 | F6: 3133 | G6: 236 | H6: 55 | I6: 6 | J6: =Info!C78 -> czerwono-nakr. | L6: =IF(AND(E6>=95,F6>=250,H6>=20),1,0) -> 1
B7: 2. | C7: 2021-09-05 | D7: WĄGROWIEC | E7: 172.75 | F7: 1946 | G7: 302 | H7: 45 | I7: 7 | J7: =Info!C79 -> czerwona | L7: =IF(AND(E7>=95,F7>=250,H7>=20),1,0) -> 1
B8: 3. | C8: 2021-09-11 | D8: SZAMOTUŁY | E8: 215.93 | F8: 1600 | G8: 267 | H8: 43 | I8: 8 | J8: =Info!C80 -> płowa | L8: 1
I9: 9 | J9: =Info!C81 -> biała | L9: 0
I10: 10 | J10: =Info!C82 -> szpakowata | L10: 0
I11: 11 | J11: =Info!C83 -> niebiesko-pstra | L11: 0
A12: =Ex!A12 -> MIĘDZYNARODOWE CENTRUM | I12: 12 | J12: =Info!C84 -> nieb-nakr-pstra | L12: 0
A13: =Ex!A13 -> KONGRESOWE w Katowicach | I13: 13 | J13: =Info!C85 -> ciem-nakr-pstra | L13: =SUM(L6:L12) -> 3
A14: =Ex!A14 -> 07-09 stycznia 2022 roku | I14: 14 | J14: =Info!C86 -> ciemno-pstra
A15: Imię i NAZWISKO Hodowcy | I15: 15 | J15: =Info!C87 -> czarno-pstra
I16: 16 | J16: =Info!C88 -> czer-nakr-pstra
A17: BILICKI - GÓRA | I17: 17 | J17: =Info!C89 -> czerwono-pstra
I18: 18 | J18: =Info!C90 -> płowo-pstra
A19: Oddział PZHGP | I19: 19 | J19: =Info!C91 -> szpak-pstra
I20: 20 | J20: =Info!C92 -> czerwono-szpak
A21: IŁAWA | I21: 21 | J21: =Info!C93 -> czer-szp-pstra
I22: 22 | J22: =Info!C94 -> płowo-szpak
A23: Okręg PZHGP | I23: 23 | J23: =Info!C95 -> pł-szpak-pstra
A24: =Info!H1 -> TORUŃ
A26: Kategoria wystawowa | F26: Razem kkm :
A27: STANDARD MŁODE - 1/0 | F27: =IF(L13=0,0,IF(AND(SUM(E6:E12)>=300,L13>=3),SUM(E6:E12),"MAŁO")) -> 515.22 | H27: kkm

Sheet STM-0-1
A1: =Ex!A1 -> 70. OGÓLNOPOLSKA WYSTAWA GOŁĘBI POCZTOWYCH | B1: =Rep!A20 -> 0 | D1: Obrączka Rodowa | E1: PL-0325-21-4502 | H1: 0 | I1: 1 | J1: =Info!C73 -> niebieska
D2: Barwa | E2: niebiesko-nakr. | H2: Płeć | I2: 2 | J2: =Info!C74 -> niebiesko-nakr. | M2: =Info!B68 -> 43936 | N2: od ubr
B3: Nr Klatki | D3: Zestawienie lotów | I3: 3 | J3: =Info!C75 -> ciemno-nakrap. | M3: =Info!B69 -> 44104 | N3: do ubr
B4: Lp. | C4: Data lotu | D4: Miejscowość wypuszczenia | E4: km | F4: Włoż. Goł. Na lot | G4: Nr konkursu | H4: Ilość Hodowców | I4: 4 | J4: =Info!C76 -> ciemna | M4: =Info!B70 -> 44301 | N4: od br
B5: XX | C5: wpisz : r-m-d | D5: max. 15 znaków | E5: min. 100 -5% | F5: min. 250 | G5: max. Kol. F/5 | H5: min. 20 | I5: 5 | J5: =Info!C77 -> czarna | M5: =Info!B71 -> 44469 | N5: do br
B6: 1. | C6: 2021-08-28 | D6: CZAPLINEK | E6: 148.62 | F6: 2112 | G6: 208 | H6: 49 | I6: 6 | J6: =Info!C78 -> czerwono-nakr. | L6: =IF(AND(E6>=95,F6>=250,H6>=20),1,0) -> 1
B7: 2. | C7: 2021-09-12 | D7: STARGARD | E7: 228.34 | F7: 1263 | G7: 2 | H7: 35 | I7: 7 | J7: =Info!C79 -> czerwona | L7: =IF(AND(E7>=95,F7>=250,H7>=20),1,0) -> 1
B8: 3. | C8: 2021-09-19 | D8: PASEWALK | E8: 295.12 | F8: 909 | G8: 180 | H8: 27 | I8: 8 | J8: =Info!C80 -> płowa | L8: 1
I9: 9 | J9: =Info!C81 -> biała | L9: 0
I10: 10 | J10: =Info!C82 -> szpakowata | L10: 0
I11: 11 | J11: =Info!C83 -> niebiesko-pstra | L11: 0
A12: =Ex!A12 -> MIĘDZYNARODOWE CENTRUM | I12: 12 | J12: =Info!C84 -> nieb-nakr-pstra | L12: 0
A13: =Ex!A13 -> KONGRESOWE w Katowicach | I13: 13 | J13: =Info!C85 -> ciem-nakr-pstra | L13: =SUM(L6:L12) -> 3
A14: =Ex!A14 -> 07-09 stycznia 2022 roku | I14: 14 | J14: =Info!C86 -> ciemno-pstra
A15: Imię i NAZWISKO Hodowcy | I15: 15 | J15: =Info!C87 -> czarno-pstra
I16: 16 | J16: =Info!C88 -> czer-nakr-pstra
A17: J. & Z. GRACZYK | I17: 17 | J17: =Info!C89 -> czerwono-pstra
I18: 18 | J18: =Info!C90 -> płowo-pstra
A19: Oddział PZHGP | I19: 19 | J19: =Info!C91 -> szpak-pstra
I20: 20 | J20: =Info!C92 -> czerwono-szpak
A21: ŚWIECIE | I21: 21 | J21: =Info!C93 -> czer-szp-pstra
I22: 22 | J22: =Info!C94 -> płowo-szpak
A23: Okręg PZHGP | I23: 23 | J23: =Info!C95 -> pł-szpak-pstra
A24: =Info!H1 -> TORUŃ
A26: Kategoria wystawowa | F26: Razem kkm :
A27: STANDARD MŁODE - 0/1 | F27: =IF(L13=0,0,IF(AND(SUM(E6:E12)>=300,L13>=3),SUM(E6:E12),"MAŁO")) -> 672.08 | H27: kkm

Sheet STM-0-2
A1: =Ex!A1 -> 70. OGÓLNOPOLSKA WYSTAWA GOŁĘBI POCZTOWYCH | B1: =Rep!A21 -> 0 | D1: Obrączka Rodowa | E1: PL-0325-21-4542 | H1: 0 | I1: 1 | J1: =Info!C73 -> niebieska
D2: Barwa | E2: niebiesko-pstra | H2: Płeć | I2: 2 | J2: =Info!C74 -> niebiesko-nakr. | M2: =Info!B68 -> 43936 | N2: od ubr
B3: Nr Klatki | D3: Zestawienie lotów | I3: 3 | J3: =Info!C75 -> ciemno-nakrap. | M3: =Info!B69 -> 44104 | N3: do ubr
B4: Lp. | C4: Data lotu | D4: Miejscowość wypuszczenia | E4: km | F4: Włoż. Goł. Na lot | G4: Nr konkursu | H4: Ilość Hodowców | I4: 4 | J4: =Info!C76 -> ciemna | M4: =Info!B70 -> 44301 | N4: od br
B5: XX | C5: wpisz : r-m-d | D5: max. 15 znaków | E5: min. 100 -5% | F5: min. 250 | G5: max. Kol. F/5 | H5: min. 20 | I5: 5 | J5: =Info!C77 -> czarna | M5: =Info!B71 -> 44469 | N5: do br
B6: 1. | C6: 2021-08-22 | D6: SZCZECINEK | E6: 123.88 | F6: 2321 | G6: 188 | H6: 48 | I6: 6 | J6: =Info!C78 -> czerwono-nakr. | L6: =IF(AND(E6>=95,F6>=250,H6>=20),1,0) -> 1
B7: 2. | C7: 2021-08-28 | D7: CZAPLINEK | E7: 148.62 | F7: 2112 | G7: 75 | H7: 49 | I7: 7 | J7: =Info!C79 -> czerwona | L7: =IF(AND(E7>=95,F7>=250,H7>=20),1,0) -> 1
B8: 3. | C8: 2021-09-12 | D8: STARGARD | E8: 228.34 | F8: 1263 | G8: 206 | H8: 35 | I8: 8 | J8: =Info!C80 -> płowa | L8: 1
I9: 9 | J9: =Info!C81 -> biała | L9: 0
I10: 10 | J10: =Info!C82 -> szpakowata | L10: 0
I11: 11 | J11: =Info!C83 -> niebiesko-pstra | L11: 0
A12: =Ex!A12 -> MIĘDZYNARODOWE CENTRUM | I12: 12 | J12: =Info!C84 -> nieb-nakr-pstra | L12: 0
A13: =Ex!A13 -> KONGRESOWE w Katowicach | I13: 13 | J13: =Info!C85 -> ciem-nakr-pstra | L13: =SUM(L6:L12) -> 3
A14: =Ex!A14 -> 07-09 stycznia 2022 roku | I14: 14 | J14: =Info!C86 -> ciemno-pstra
A15: Imię i NAZWISKO Hodowcy | I15: 15 | J15: =Info!C87 -> czarno-pstra
I16: 16 | J16: =Info!C88 -> czer-nakr-pstra
A17: J. & Z. GRACZYK | I17: 17 | J17: =Info!C89 -> czerwono-pstra
I18: 18 | J18: =Info!C90 -> płowo-pstra
A19: Oddział PZHGP | I19: 19 | J19: =Info!C91 -> szpak-pstra
I20: 20 | J20: =Info!C92 -> czerwono-szpak
A21: ŚWIECIE | I21: 21 | J21: =Info!C93 -> czer-szp-pstra
I22: 22 | J22: =Info!C94 -> płowo-szpak
A23: Okręg PZHGP | I23: 23 | J23: =Info!C95 -> pł-szpak-pstra
A24: =Info!H1 -> TORUŃ
A26: Kategoria wystawowa | F26: Razem kkm :
A27: STANDARD MŁODE - 0/1 | F27: =IF(L13=0,0,IF(AND(SUM(E6:E12)>=300,L13>=3),SUM(E6:E12),"MAŁO")) -> 500.84 | H27: kkm

Sheet Rep
A1: REPREZENTACJA | C1: =CONCATENATE(Info!G1,Info!H1) -> Okręgu PZHGP TORUŃ
A3: Klatka | B3: Imię i Nazwisko Hodowcy | C3: Obrączka Rodowa Gołębia | D3: Barwa Gołębia | E3: Pł. | F3: kkm
B4: STANDARD - SAMCZYKI (1/0) | D4: R A Z E M : | F4: =SUM(F5:F9) -> 14882.22
B5: =IF('ST-1-1'!$A$17="","",'ST-1-1'!$A$17) -> Maciej KACZMAREK | C5: =IF('ST-1-1'!$E$1="","",'ST-1-1'!$E$1) -> PL-0326-20-9441 | D5: =IF('ST-1-1'!$E$2="","",'ST-1-1'!$E$2) -> niebiesko-nakr. | E5: 1 | F5: ='ST-1-1'!$F$27 -> 2548.53
B6: =IF('ST-1-2'!$A$17="","",'ST-1-2'!$A$17) -> Marcin ŻEBROWSKI | C6: =IF('ST-1-2'!$E$1="","",'ST-1-2'!$E$1) -> PL-DE-19-1002588 | D6: =IF('ST-1-2'!$E$2="","",'ST-1-2'!$E$2) -> niebieska | E6: 1 | F6: ='ST-1-2'!$F$27 -> 3026.13
B7: =IF('ST-1-3'!$A$17="","",'ST-1-3'!$A$17) -> Jerzy KORCZAK | C7: =IF('ST-1-3'!$E$1="","",'ST-1-3'!$E$1) -> PL-0323-18-10022 | D7: =IF('ST-1-3'!$E$2="","",'ST-1-3'!$E$2) -> niebieska | E7: 1 | F7: ='ST-1-3'!$F$27 -> 3559.96
B8: =IF('ST-1-4'!$A$17="","",'ST-1-4'!$A$17) -> W. & A. DŁUGOKĘCKI | C8: =IF('ST-1-4'!$E$1="","",'ST-1-4'!$E$1) -> PL-0241-19-573 | D8: =IF('ST-1-4'!$E$2="","",'ST-1-4'!$E$2) -> niebieska | E8: 1 | F8: ='ST-1-4'!$F$27 -> 3067
B9: =IF('ST-1-5'!$A$17="","",'ST-1-5'!$A$17) -> Zbigniew BUGAJSKI | C9: =IF('ST-1-5'!$E$1="","",'ST-1-5'!$E$1) -> PL-0321-19-9169 | D9: =IF('ST-1-5'!$E$2="","",'ST-1-5'!$E$2) -> nieb-nakr-pstra | E9: 1 | F9: ='ST-1-5'!$F$27 -> 2680.6
B10: STANDARD - SAMICZKI (0/1) | D10: R A Z E M : | F10: =SUM(F11:F15) -> 14763.08
B11: =IF('ST-0-1'!$A$17="","",'ST-0-1'!$A$17) -> W. & A. DŁUGOKĘCKI | C11: =IF('ST-0-1'!$E$1="","",'ST-0-1'!$E$1) -> PL-0241-18-166 | D11: =IF('ST-0-1'!$E$2="","",'ST-0-1'!$E$2) -> niebieska | E11: 0 | F11: ='ST-0-1'!$F$27 -> 2595.71
B12: =IF('ST-0-2'!$A$17="","",'ST-0-2'!$A$17) -> Marcin ŻEBROWSKI | C12: =IF('ST-0-2'!$E$1="","",'ST-0-2'!$E$1) -> PL-0323-19-49 | D12: =IF('ST-0-2'!$E$2="","",'ST-0-2'!$E$2) -> niebiesko-nakr. | E12: 0 | F12: ='ST-0-2'!$F$27 -> 3604.66
B13: =IF('ST-0-3'!$A$17="","",'ST-0-3'!$A$17) -> Maciej KACZMAREK | C13: =IF('ST-0-3'!$E$1="","",'ST-0-3'!$E$1) -> PL-0326-19-8107 | D13: =IF('ST-0-3'!$E$2="","",'ST-0-3'!$E$2) -> niebiesko-nakr. | E13: 0 | F13: ='ST-0-3'!$F$27 -> 2388.78
B14: =IF('ST-0-4'!$A$17="","",'ST-0-4'!$A$17) -> Tomasz RUMIŃSKI | C14: =IF('ST-0-4'!$E$1="","",'ST-0-4'!$E$1) -> PL-0326-20-14735 | D14: =IF('ST-0-4'!$E$2="","",'ST-0-4'!$E$2) -> niebiesko-pstra | E14: 0 | F14: ='ST-0-4'!$F$27 -> 3083.89
B15: =IF('ST-0-5'!$A$17="","",'ST-0-5'!$A$17) -> Maciej KACZMAREK | C15: =IF('ST-0-5'!$E$1="","",'ST-0-5'!$E$1) -> PL-0326-19-6673 | D15: =IF('ST-0-5'!$E$2="","",'ST-0-5'!$E$2) -> niebiesko-nakr. | E15: 0 | F15: ='ST-0-5'!$F$27 -> 3090.04
B16: STANDARD MŁODE - SAMCZYKI (1/0) | D16: R A Z E M : | F16: =SUM(F17:F18) -> 1143.98
B17: =IF('STM-1-1'!$A$17="","",'STM-1-1'!$A$17) -> BILICKI - GÓRA | C17: =IF('STM-1-1'!$E$1="","",'STM-1-1'!$E$1) -> PL-0241-21-5145 | D17: =IF('STM-1-1'!$E$2="","",'STM-1-1'!$E$2) -> niebiesko-pstra | E17: 1 | F17: ='STM-1-1'!$F$27 -> 628.76
B18: =IF('STM-1-2'!$A$17="","",'STM-1-2'!$A$17) -> BILICKI - GÓRA | C18: =IF('STM-1-2'!$E$1="","",'STM-1-2'!$E$1) -> PL-0241-21-5207 | D18: =IF('STM-1-2'!$E$2="","",'STM-1-2'!$E$2) -> niebieska | E18: 1 | F18: ='STM-1-2'!$F$27 -> 515.22
B19: STANDARD MŁODE - SAMICZKI (0/1) | D19: R A Z E M : | F19: =SUM(F20:F21) -> 1172.92
B20: =IF('STM-0-1'!$A$17="","",'STM-0-1'!$A$17) -> J. & Z. GRACZYK | C20: =IF('STM-0-1'!$E$1="","",'STM-0-1'!$E$1) -> PL-0325-21-4502 | D20: =IF('STM-0-1'!$E$2="","",'STM-0-1'!$E$2) -> niebiesko-nakr. | E20: 0 | F20: ='STM-0-1'!$F$27 -> 672.08
B21: =IF('STM-0-2'!$A$17="","",'STM-0-2'!$A$17) -> J. & Z. GRACZYK | C21: =IF('STM-0-2'!$E$1="","",'STM-0-2'!$E$1) -> PL-0325-21-4542 | D21: =IF('STM-0-2'!$E$2="","",'STM-0-2'!$E$2) -> niebiesko-pstra | E21: 0 | F21: ='STM-0-2'!$F$27 -> 500.84
